{"text_format":"1","workbook":"xlsx","n_sheets":9,"sheets":["Notas","Calculador de Disoluciones","Calculador de Dosis","Calculador Manual","Combinador de Disoluciones","Calculador de Dosis de Sales","Nutrientes","Sales y Elementos","Control de Consumos Netos"],"not_rendered":{"charts":0,"images":4,"macros":1,"external_links":0,"defined_names":8,"comments":2,"pivot_tables":3},"unopened":[],"bounds":{"document_bytes":16777216,"sheet_cells":100000,"rows_first":2000,"rows_last":500,"rows_between":2000,"halvings":0,"cell_chars":16384,"cell_head_chars":4096},"cells_cut":0,"cells_raw":0,"read":"whole","date_system":"1900"}

{"sheet":"Notas","index":0,"n_rows":48,"n_cols":9,"rows_kept":48,"cut":false,"hidden":false,"merged":[[16,3,16,8],[6,3,6,8],[38,3,38,8],[42,3,42,8],[8,3,8,8],[12,3,12,8],[10,3,10,8],[14,3,14,8],[18,3,18,8],[47,3,47,8],[43,3,43,8],[20,3,20,8],[34,3,34,8],[32,3,32,8],[26,3,26,8],[28,3,28,8],[30,3,30,8],[22,3,22,8],[36,3,36,8],[40,3,40,8],[45,3,45,8],[24,3,24,8]]}
[null,null,null,"CALCULADORAS DE ABONADO",null,null,null,null,"v6b4"]
[null,null,null,"www.acuariofiliamadrid.org",null,null,null,null,"(c) carlosterre, 2014"]
[]
[]
[null,"Hojas",null,"Descripción"]
[]
[null,"Notas",null,"Esta hoja con ayuda e indicaciones básicas."]
[]
[null,"Calculador de Disoluciones",null,"¿Cuánta sal necesito para crear una disolución NPK para mi tanque?\nEsta calculadora permite calcular la disolución para un objetivo, la dosis, y además \"perfilarla\" en una base de datos para reutilizarla (ver más adelante el calculador de dosis y el combinador).\nEsta hoja contiene también la base de datos -lista- de disoluciones creadas."]
[]
[null,"Calculador de Dosis",null,"¿Cuál sería la dosis de una disolución existente si la quiero usar para otro tanque u objetivo?\nEsta calculadora permite calcular una dosis para un determinado objetivo nuevo o para un tanque diferente, seleccionando una disolución \"perfilada\" en la base de datos por su número en la lista."]
[]
[null,"Calculador Manual",null,"¿Cómo hago cálculos con una disolución antigua que ya tenía creada?\nEsta calculadora permite dar los datos de una disolución antigua ya existente y calcular sus aportes, dosis, etc. Además, permite \"perfilarla\" para copiarla en la base de datos para reutilizarla con otras calculadoras como el calculador de dosis o el combinador de disoluciones."]
[]
[null,"Combinador de Disoluciones",null,"¿Cómo combino disoluciones existentes para crear otra ajustada a proporciones diferentes?\nEsta calculadora permite calcular las proporciones de mezcla de disoluciones existentes en la base de datos para crear una nueva disolución (o dosis) que se ajuste a un objetivo de proporciones específicas. ¡Esta es la calculadora que te evita tener que tirar una disolución que ya no te sirve!"]
[]
[null,"Calculador de Dosis de Sales",null,"No uso disoluciones: ¿cómo calculo la cantidad de sal que tengo que añadir al tanque?\nEsta calculadora permite calcular la cantidad de sal que se debe añadir directamente al tanque (ie sin crear una disolución previamente) para lograr un objetivo de concentración NPK dado."]
[]
[null,"Sales y Elementos",null,"Contiene dos tablas para definir nuevas sales y elementos nutritivos, de manera que el sistema de calculadoras es \"escalable\" y puede crecer si hay nuevas necesidades."]
[]
[null,"Nutrientes",null,"Proporciona información general sobre los nutrientes, sus funciones y los síntomas de deficit en las plantas."]
[]
[null,null,null,"AYUDA"]
[]
[null,"Leyenda",null,"Las celdas con información editable por el usuario están desprotegidas. El resto de celdas se mantienen visibles para facilitar la identificación de errores, pero están protegidas para evitar modificaciones.\n\nLos colores de las celdas identifican si se trata de datos de entrada, cálculos o resultados. A continuación se explican los códigos de colores."]
[]
[null,"Datos de entrada",null,"Dato de entrada de usuario. Un valor que será normalmente diferente cada vez que se quiera hacer un cálculo (por ejemplo, la concentración objetivo de un nutriente)."]
[]
[null,"Parámetros",null,"Parámetro de usuario. Un valor que normalmente definirá una vez el usuario y no cambiará con frecuencia (por ejemplo, el volumen de la columna de agua)."]
[]
[null,"Calculos intermedios",null,"Un cálculo intermedio, que puede ser o no un resultado útil. En todo caso, los cálculos intermedios facilitan entender mejor los cálculos realizados."]
[]
[null,"Resultados",null,"Un cálculo final que puede ser el resultado en la forma buscada."]
[]
[null,"Títulos",null,"Una cabecera que explica qué es cada valor mostrado."]
[]
[null,null,null,"COMO USAR ESTAS CALCULADORAS"]
[]
[null,null,null,"No hay peligro en usar las calculadoras… por lo que la mejor forma de aprender es jugar con ellas. Basta introducir los datos de entrada, y las calculadoras mostrarán los resultados y advertencias relevantes.\n\nSí merece explicación la función de base de datos de disoluciones:\n\nEsta función permite guardar la información de las disoluciones que creamos para realizar cálculos rápidos sobre dosificación para diferentes tanques (por ejemplo, para un amigo) o para combinar disoluciones existentes para crear una disolución con objetivos totalmente distintos.\n\nPara utilizar esta función se debe copiar la línea que se crea como resultado en \"Calculador de Disoluciones\", \"Calculador Manual\" o \"Combinador de Disoluciones\" en la primera fila vacía que haya en la tabla XXXX de la hoja \"Calculador de Disoluciones\".\n\nA partir de ese momento, podremos hacer cálculos con esa disolución utilizando únicamente el número (el sistema nos recordará las características de la disolución y su fecha cuando la seleccionemos). "]
[]
[null,null,null,"COMO CREAR UNA DISOLUCIÓN"]
[]
[null,null,null,"Esta guía únicamente da los puntos más básicos para crear correctamente una disolución de abonado. Es un proceso muy sencillo que cualquiera puede seguir, pero se debe tener en cuenta lo siguiente:\n\nLa disolución se calcula para un volumen \"final\", después de agregar las sales al agua. Tomar 1L de agua y añadir las sales resultará en una disolución mal calculada, pues el volumen de las sales resultará en un volumen mayor de disolución final.\n\nLa forma correcta de proceder es tomar un recipiente, marcar en él volumen final deseado, disolver las sales necesarias en una cantidad menor de agua, y al final rellenar con agua hasta la marca de volumen final deseado. ¡Sencillo!\n\nPara disolver bien las sales es útil que la primera cantidad de agua (aproximadamente un 50%) esté caliente. De lo contrario podríamos tener una concentración de saturación y no lograr disolver toda la sal hasta rellenar al volumen final deseado, lo que haría el proceso más lento. "]
[null,null,null,"Trabajar con disoluciones excesivamente concentradas no es recomendable por dos razones principales: 1) se dificulta muchísimo más el trabajo de disolver las sales; y 2) se aumenta el error de dosificación resultante de la imprecisión de la medida de la dosis.\n\nEl volumen de dosis es ligeramente variable cuando se utilizan dosificadores con pulsador. El error será menor si para hacer un abonado utilizamos, por ejemplo, 10 pulsaciones de una disolución en lugar de 1 pulsación de otra disolución diez veces más concentrada (el error del primer abonado será 10 veces menor que para el segundo).\n\nLa única ventaja de una disolución concentrada es que durará más pues las dosis necesarias serán menores. Se debe buscar, por tanto, un compromiso."]
[]
[null,null,null,"COMO CONSERVAR UNA DISOLUCION"]
[]
[null,null,null,"Las sales habituales NPK no requieren cuidados especiales. Las disoluciones son de iones inorgánicos que además están en altas concentraciones que dificultan la proliferación de organismos. La luz no les afecta. Igualmente, no es necesaria la conservación en frío.\n\nSe debe tener en cuenta que la concentración de saturación desciende con la temperatura: una disolución que no precipita sales a temperatura ambiente sí puede precipitar si se introduce en la nevera.\n\nEsto no es generalizable a otros tipos de compuestos (como los quelatos que se usan para aportar hierro). Consulta en el foro si tu disolución no va a ser habitual."]

{"sheet":"Calculador de Disoluciones","index":1,"n_rows":93,"n_cols":57,"rows_kept":93,"cut":false,"hidden":false,"merged":[[5,4,8,8]]}
[null,null,"CALCULADORAS DE ABONADO",null,null,null,null,null,"(Volver a Notas)"]
[null,null,"www.acuariofiliamadrid.org",null,null,null,null,null,"(c) carlosterre, 2014"]
[null,null,null,null,null,null,null,null,null,null,null,null,null,null,null,null,null,null,null,null,null,null,null,null,null,null,"Principios",null,null,null,null,null,null,null,null,null,null,null,null,null,null,"Formulas",null,null,null,null,null,null,null,null,null,null,null,null,null,null,"Disoluciones"]
["Calculador de Disoluciones de Abonado NPK",null,null,null,null,null,null,null,null,null,null,null,null,null,null,null,null,null,null,null,null,null,null,null,null,null,"K",null,null,null,null,null,null,null,null,null,null,null,null,null,null,"K2HPO4",null,null,null,null,null,null,null,null,null,null,null,null,null,null,1]
[null,null,null,null,null,null,null,null,null,null,null,null,null,null,null,null,null,null,null,null,null,null,null,null,null,null,"N",null,null,null,null,null,null,null,null,null,null,null,null,null,null,"K2SO4",null,null,null,null,null,null,null,null,null,null,null,null,null,null,2]
[null,"Volumen de la columna de agua",220,"L","Esta calculadora toma como datos: a) el volumen de la columna de agua sobre la que trabajar; b) el volumen de disolución que se quiere crear; c) el volumen de dosis que se quiere aditar para aportar el objetivo al tanque; d) las concentraciones iniciales en el tanque; y e) las concentraciones objetivo de ión nitrato (NO3), ión fosfato (PO4) y potasio (K) para el tanque.\nComo resultado proporciona la cantidad de cada sal para crear la disolución deseada.",null,null,null,null,null,null,null,null,null,null,null,null,null,null,null,null,null,null,null,null,null,"NO3",null,null,null,null,null,null,null,null,null,null,null,null,null,null,"K3PO4",null,null,null,null,null,null,null,null,null,null,null,null,null,null,3]
[null,"Volumen de disolución",1000,"mL ó cc",null,null,null,null,null,null,null,null,null,null,null,null,null,null,null,null,null,null,null,null,null,null,"P",null,null,null,null,null,null,null,null,null,null,null,null,null,null,"KH2PO4",null,null,null,null,null,null,null,null,null,null,null,null,null,null,"(en blanco)"]
[null,"Volumen de dosis de disolución",60,"mL",null,null,null,null,null,null,null,null,null,null,null,null,null,null,null,null,null,null,null,null,null,null,"PO4",null,null,null,null,null,null,null,null,null,null,null,null,null,null,"KNO3",null,null,null,null,null,null,null,null,null,null,null,null,null,null,4]
[null,"Volumen por pulsación de dosificador",1.2,"mL",null,null,null,null,null,null,null,null,null,null,null,null,null,null,null,null,null,null,null,null,null,null,"(en blanco)",null,null,null,null,null,null,null,null,null,null,null,null,null,null,"(en blanco)"]
[null,{"$f":"\"Pulsaciones de dosificador de \"&TEXT(C9,\"0.0\")&\"mL\"","v":"Pulsaciones de dosificador de 1.2mL"},{"$f":"C8/$C$9","v":50},"pulsaciones/dosis"]
[null,"Número de dosis preparadas",{"$f":"C7/C8","v":16.666666666666668}]
[]
[null,"Principios a aditar con la disolución","NO3","PO4","K"]
[null,"Nombre del principio",{"$f":"VLOOKUP(C$13,MasasPorFormula,2,FALSE)","v":"Nitrato ión"},{"$f":"VLOOKUP(D$13,MasasPorFormula,2,FALSE)","v":"Fosfato ión"},{"$f":"VLOOKUP(E$13,MasasPorFormula,2,FALSE)","v":"Potasio"}]
[null,"Concetración inicial en tanque (mg/L ó ppm)"]
[null,"Objetivo en tanque (mg/L ó ppm)",null,null,13,{"$f":"\"Este objetivo se alcanzará añadiendo 1 dosis de \"&TEXT($C$8,\"0\")&\" mL de disolución al tanque de \"&TEXT($C$6,\"0\")&\" L de agua.\"","v":"Este objetivo se alcanzará añadiendo 1 dosis de 60 mL de disolución al tanque de 220 L de agua."}]
[null,"Defecto en tanque (mg)",{"$f":"(C16-C15)*$C$6","v":0},{"$f":"(D16-D15)*$C$6","v":0},{"$f":"(E16-E15)*$C$6","v":2860}]
[null,"Concentración objetivo en disolución (mg/mL)",{"$f":"C17/$C$8","v":0},{"$f":"D17/$C$8","v":0},{"$f":"E17/$C$8","v":47.666666666666664}]
[null,"Masa de principio en disolución (g)",{"$f":"C18*$C$7/1000","v":0},{"$f":"D18*$C$7/1000","v":0},{"$f":"E18*$C$7/1000","v":47.666666666666664}]
[]
[null,"Compuesto que aporta el elemento",{"$f":"\"% de \"&C$13","v":"% de NO3"},{"$f":"\"% de \"&D$13","v":"% de PO4"},{"$f":"\"% de \"&E$13","v":"% de K"},"Nombre del compuesto","Masa teórica de compuesto en disolución (g)","Masa efectiva de compuesto en disolución (g)","Concentración de compuesto en disolución (mg/mL)","Alerta de concentración"]
[null,"KNO3",{"$f":"IF(ISNA(VLOOKUP(C$13&\" (\"&$B22&\")\",PCMasaPorElementoYFormula,10,FALSE)),0,VLOOKUP(C$13&\" (\"&$B22&\")\",PCMasaPorElementoYFormula,10,FALSE))","v":0.61328325908576586},0,0.38671674091423419,{"$f":"VLOOKUP($B22,MasasPorFormula,2,FALSE)","v":"Nitrato potásico"},{"$f":"MMULT(MINVERSE(TRANSPOSE($C$22:$E$24)),TRANSPOSE($C$19:$E$19))","v":0},{"$f":"MAX(0,G22)","v":0},{"$f":"H22/$C$7*1000","v":0},{"$f":"IF(I22>VLOOKUP($B22,MasasPorFormula,4,FALSE),\"¡Alerta! Aumenta la dosis de disolución.\",\"\")","v":""}]
[null,"KH2PO4",0,0.69787781255970482,0.28730582131887189,{"$f":"VLOOKUP($B23,MasasPorFormula,2,FALSE)","v":"Fosfato monopotásico"},0,{"$f":"MAX(0,G23)","v":0},{"$f":"H23/$C$7*1000","v":0},{"$f":"IF(I23>VLOOKUP($B23,MasasPorFormula,4,FALSE),\"¡Alerta! Aumenta la dosis de disolución.\",\"\")","v":""}]
[null,"K2SO4",0,0,0.44873779833466282,{"$f":"VLOOKUP($B24,MasasPorFormula,2,FALSE)","v":"Sulfato potásico"},106.22387247868406,{"$f":"MAX(0,G24)","v":106.22387247868406},{"$f":"H24/$C$7*1000","v":106.22387247868406},{"$f":"IF(I24>VLOOKUP($B24,MasasPorFormula,4,FALSE),\"¡Alerta! Aumenta la dosis de disolución.\",\"\")","v":""}]
[]
[null,null,{"$f":"C$13","v":"NO3"},{"$f":"D$13","v":"PO4"},{"$f":"E$13","v":"K"}]
[null,"Masa teórica de principio en disolución (g) -check-",{"$f":"SUMPRODUCT(C22:C24,$G22:$G24)","v":0},{"$f":"SUMPRODUCT(D22:D24,$G22:$G24)","v":0},{"$f":"SUMPRODUCT(E22:E24,$G22:$G24)","v":47.666666666666664}]
[null,"Masa efectiva de principio en disolución (g)",{"$f":"SUMPRODUCT(C22:C24,$H22:$H24)","v":0},{"$f":"SUMPRODUCT(D22:D24,$H22:$H24)","v":0},{"$f":"SUMPRODUCT(E22:E24,$H22:$H24)","v":47.666666666666664}]
[null,"Concentración efectiva en disolución (mg/mL)",{"$f":"C28*1000/$C$7","v":0},{"$f":"D28*1000/$C$7","v":0},{"$f":"E28*1000/$C$7","v":47.666666666666664}]
[null,"Concentración AÑADIDA al tanque tras 1 dosis (mg/L)",{"$f":"C29*$C$8/$C$6","v":0},{"$f":"D29*$C$8/$C$6","v":0},{"$f":"E29*$C$8/$C$6","v":13}]
[null,"Concentración FINAL en tanque tras 1 dosis (mg/L)",{"$f":"C29*$C$8/$C$6+C$15","v":0},{"$f":"D29*$C$8/$C$6+D$15","v":0},{"$f":"E29*$C$8/$C$6+E$15","v":13}]
[null,"Alerta de exceso en tanque respecto de objetivo",{"$f":"IF(C31>C16,\"¡Alerta! Exceso de \"&TEXT(C31-C16,\"0.0\")&\" mg/L de \"&C13,\"\")","v":""},{"$f":"IF(D31>D16,\"¡Alerta! Exceso de \"&TEXT(D31-D16,\"0.0\")&\" mg/L de \"&D13,\"\")","v":""},{"$f":"IF(E31>E16,\"¡Alerta! Exceso de \"&TEXT(E31-E16,\"0.0\")&\" mg/L de \"&E13,\"\")","v":""},{"$f":"IF(C32&D32&E32=\"\",\"\",\"Las sales seleccionadas proporcionan un exceso respecto del objetivo final deseado en el tanque.\")","v":""}]
[]
["Nueva Disolución (esta línea sirve para añadir al registro de disoluciones \"DisolucionesPorNumero\" copiando y pegando como valores)"]
[{"$f":"MAX(OFFSET(MarkerDisolucionesPorNumeroTopLeft,1,0,50))+1","v":5},{"$f":"\"Disolución NPK ( \"&TEXT(C30,\"0.0\")&\" / \"&TEXT(D30,\"0.0\")&\" / \"&TEXT(E30,\"0.0\")&\" ) para \"&$C$6&\"L de agua y dosis de \"&TEXT($C$8,\"0.0\")&\"mL\"","v":"Disolución NPK ( 0.0 / 0.0 / 13.0 ) para 220L de agua y dosis de 60.0mL"},{"$f":"DAY(TODAY())&\"-\"&MONTH(TODAY())&\"-\"&YEAR(TODAY())","v":"3-9-2014"},{"$f":"C29","v":0},{"$f":"D29","v":0},{"$f":"E29","v":47.666666666666664},0,{"$f":"C6","v":220},{"$f":"C8","v":60},{"$f":"IF(H22>0,TEXT(H22,\"0.0\")&\"g \"&B22&\", \",\"\")&IF(H23>0,TEXT(H23,\"0.0\")&\"g \"&B23&\", \",\"\")&IF(H24>0,TEXT(H24,\"0.0\")&\"g \"&B24&\", \",\"\")&\"en \"&TEXT($C$7,\"0\")&\"mL de agua\"","v":"106.2g K2SO4, en 1000mL de agua"}]
[]
[]
[]
[]
["DisolucionesPorNumero"]
[1,2,3,4,5,6,7,8,9,10]
["#","Descripción","Fecha","Concentración NO3 (mg/mL)","Concentración PO4 (mg/mL)","Concentración K (mg/mL)","Concentración Fe (mg/mL)","Volumen tanque de referencia (L)","Volumen dosis de referencia (mL)","Composición (resumen)"]
[1,"Disolución N ( 10.0 / 0.0 / 6.3 ) para 220L de agua y dosis de 12.0mL","19-04-2014",183.33333333333334,0,115.60411623382453,0,220,12,"298.9g KNO3, en 1000mL de agua"]
[2,"Disolución K ( 0.0 / 0.0 / 10.0 ) para 220L de agua y dosis de 49.0mL","19-04-2014",0,0,44.87377983346628,0,220,49.026402682469566,"100.0g K2SO4, en 1000mL de agua"]
[3,"Disolución NPK ( 5.0 / 0.5 / 5.0 ) para 110L de agua y dosis de 10.0mL","19-04-2014",55,5.5,54.999999999999993,0,110,10,"89.7g KNO3, 7.9g KH2PO4, 40.2g K2SO4, en 1000mL de agua"]
[4,"Disolución NPK ( 0.0 / 0.0 / 13.0 ) para 220L de agua y dosis de 60.0mL","19-7-2014",0,0,47.666666666666664,0,220,60,"106.2g K2SO4, en 1000mL de agua"]
[]
[]
[]
[]
[]
[]
[]
[]
[]
[]
[]
[]
[]
[]
[]
[]
[]
[]
[]
[]
[]
[]
[]
[]
[]
[]
[]
[]
[]
[]
[]
[]
[]
[]
[]
[]
[]
[]
[]
[]
[]
[]
[]
[]
[]
[]
[null,"<eot>"]

{"sheet":"Calculador de Dosis","index":2,"n_rows":30,"n_cols":31,"rows_kept":30,"cut":false,"hidden":false,"merged":[[29,1,33,5]]}
[null,null,"CALCULADORAS DE ABONADO",null,null,null,null,null,"(Volver a Notas)"]
[null,null,"www.acuariofiliamadrid.org",null,null,null,null,null,"(c) carlosterre, 2014"]
[null,null,null,null,null,null,null,null,null,null,null,null,null,null,null,null,null,null,null,null,null,null,null,null,null,null,"Principios",null,"Formulas",null,"Disoluciones"]
["Calculador de Dosis para Disoluciones en Base de Datos",null,null,null,null,null,null,null,null,null,null,null,null,null,null,null,null,null,null,null,null,null,null,null,null,null,{"$f":"IF('Calculador de Disoluciones'!AA4=\"\",\"\",'Calculador de Disoluciones'!AA4)","v":"K"},null,{"$f":"IF('Calculador de Disoluciones'!AP4=\"\",\"\",'Calculador de Disoluciones'!AP4)","v":"K2HPO4"},null,{"$f":"IF('Calculador de Disoluciones'!BE4=\"\",\"\",'Calculador de Disoluciones'!BE4)","v":1}]
[null,null,null,null,null,null,null,null,null,null,null,null,null,null,null,null,null,null,null,null,null,null,null,null,null,null,{"$f":"IF('Calculador de Disoluciones'!AA5=\"\",\"\",'Calculador de Disoluciones'!AA5)","v":"N"},null,{"$f":"IF('Calculador de Disoluciones'!AP5=\"\",\"\",'Calculador de Disoluciones'!AP5)","v":"K2SO4"},null,{"$f":"IF('Calculador de Disoluciones'!BE5=\"\",\"\",'Calculador de Disoluciones'!BE5)","v":2}]
[null,"Volumen de la columna de agua",220,"L",null,null,null,null,null,null,null,null,null,null,null,null,null,null,null,null,null,null,null,null,null,null,{"$f":"IF('Calculador de Disoluciones'!AA6=\"\",\"\",'Calculador de Disoluciones'!AA6)","v":"NO3"},null,{"$f":"IF('Calculador de Disoluciones'!AP6=\"\",\"\",'Calculador de Disoluciones'!AP6)","v":"K3PO4"},null,{"$f":"IF('Calculador de Disoluciones'!BE6=\"\",\"\",'Calculador de Disoluciones'!BE6)","v":3}]
[null,"Volumen por pulsación de dosificador",1.2,"mL",null,null,null,null,null,null,null,null,null,null,null,null,null,null,null,null,null,null,null,null,null,null,{"$f":"IF('Calculador de Disoluciones'!AA7=\"\",\"\",'Calculador de Disoluciones'!AA7)","v":"P"},null,{"$f":"IF('Calculador de Disoluciones'!AP7=\"\",\"\",'Calculador de Disoluciones'!AP7)","v":"KH2PO4"},null,{"$f":"IF('Calculador de Disoluciones'!BE7=\"\",\"\",'Calculador de Disoluciones'!BE7)","v":"(en blanco)"}]
[null,"Disolución seleccionada",2,null,null,null,null,null,null,null,null,null,null,null,null,null,null,null,null,null,null,null,null,null,null,null,{"$f":"IF('Calculador de Disoluciones'!AA8=\"\",\"\",'Calculador de Disoluciones'!AA8)","v":"PO4"},null,{"$f":"IF('Calculador de Disoluciones'!AP8=\"\",\"\",'Calculador de Disoluciones'!AP8)","v":"KNO3"},null,{"$f":"IF('Calculador de Disoluciones'!BE8=\"\",\"\",'Calculador de Disoluciones'!BE8)","v":4}]
[3,{"$f":"VLOOKUP(\"#\",DisolucionesPorNumero,$A9,FALSE)","v":"Fecha"},{"$f":"VLOOKUP($C$8,DisolucionesPorNumero,$A9,FALSE)","v":"19-04-2014"},null,null,null,null,null,null,null,null,null,null,null,null,null,null,null,null,null,null,null,null,null,null,null,{"$f":"IF('Calculador de Disoluciones'!AA9=\"\",\"\",'Calculador de Disoluciones'!AA9)","v":"(en blanco)"},null,{"$f":"IF('Calculador de Disoluciones'!AP9=\"\",\"\",'Calculador de Disoluciones'!AP9)","v":"(en blanco)"},null,{"$f":"IF('Calculador de Disoluciones'!BE9=\"\",\"\",'Calculador de Disoluciones'!BE9)","v":""}]
[2,"Descripción","Disolución K ( 0.0 / 0.0 / 10.0 ) para 220L de agua y dosis de 49.0mL",null,null,null,null,null,null,null,null,null,null,null,null,null,null,null,null,null,null,null,null,null,null,null,{"$f":"IF('Calculador de Disoluciones'!AA10=\"\",\"\",'Calculador de Disoluciones'!AA10)","v":""},null,{"$f":"IF('Calculador de Disoluciones'!AP10=\"\",\"\",'Calculador de Disoluciones'!AP10)","v":""},null,{"$f":"IF('Calculador de Disoluciones'!BE10=\"\",\"\",'Calculador de Disoluciones'!BE10)","v":""}]
[10,"Composición (resumen)","100.0g K2SO4, en 1000mL de agua"]
[4,"Concentración NO3 (mg/mL)",0]
[5,"Concentración PO4 (mg/mL)",0]
[6,"Concentración K (mg/mL)",44.87377983346628]
[7,"Concentración Fe (mg/mL)",0]
[null,"Criterio de ajuste de dosis","K",{"$f":"IF(ISERROR(MATCH(\"Objetivo inalcanzable\",$I$21:$I$24,0)),\"\",\"Alguno de los objetivos es inalcanzable con esta disolución. Prueba el combinador de disoluciones.\")","v":""}]
[null,"Volumen de dosis de disolución",{"$f":"OFFSET($F$20,MATCH(C16,$B$21:$B$24,0),0)","v":63.734323487210439},{"$f":"IF($C$17=\"Imposible\",\"Debes seleccionar un criterio de ajuste diferente. No es posible alcanzar el objetivo para el criterio seleccionado.\",\"mL\")","v":"mL"}]
[null,{"$f":"\"Pulsaciones de dosificador de \"&TEXT(C7,\"0.0\")&\"mL\"","v":"Pulsaciones de dosificador de 1.2mL"},{"$f":"IF(C17=\"Imposible\",\"\",C17/$C$7)","v":53.111936239342036},"pulsaciones/dosis"]
[]
[null,null,"Concetración inicial en tanque (mg/L ó ppm)","Objetivo en tanque (mg/L ó ppm)","Defecto en tanque (mg)",{"$f":"\"Dosis requerida de la disolución #\"&$C$8&\" para cada criterio (mL)\"","v":"Dosis requerida de la disolución #2 para cada criterio (mL)"},{"$f":"\"Concentración AÑADIDA en tanque por dosis de \"&TEXT($C$17,\"0.0\")&\"mL de la disolución #\"&$C$8&\" (mg/L ó ppm)\"","v":"Concentración AÑADIDA en tanque por dosis de 63.7mL de la disolución #2 (mg/L ó ppm)"},{"$f":"\"Concentración FINAL en tanque por dosis de \"&TEXT($C$17,\"0.0\")&\"mL de la disolución #\"&$C$8&\" (mg/L ó ppm)\"","v":"Concentración FINAL en tanque por dosis de 63.7mL de la disolución #2 (mg/L ó ppm)"},{"$f":"\"Alerta de objetivo para la dosis de \"&TEXT($C$17,\"0.0\")&\"mL de la disolución #\"&$C$8","v":"Alerta de objetivo para la dosis de 63.7mL de la disolución #2"}]
[null,"NO3",null,null,{"$f":"(D21-C21)*$C$6","v":0},{"$f":"IF(C12=0,\"Imposible\",E21/C12)","v":"Imposible"},{"$f":"IF($C$17=\"Imposible\",\"\",C12*$C$17/$C$6)","v":0},{"$f":"IF($C$17=\"Imposible\",\"\",G21+C21)","v":0},{"$f":"IF($C$17=\"Imposible\",\"\",IF(AND(ABS(G21-(D21-C21))>0.1,F21<>$C$17,D21>0),\"Objetivo inalcanzable\",\"\"))","v":""}]
[null,"PO4",null,null,{"$f":"(D22-C22)*$C$6","v":0},{"$f":"IF(C13=0,\"Imposible\",E22/C13)","v":"Imposible"},{"$f":"IF($C$17=\"Imposible\",\"\",C13*$C$17/$C$6)","v":0},{"$f":"IF($C$17=\"Imposible\",\"\",G22+C22)","v":0},{"$f":"IF($C$17=\"Imposible\",\"\",IF(AND(ABS(G22-(D22-C22))>0.1,F22<>$C$17,D22>0),\"Objetivo inalcanzable\",\"\"))","v":""}]
[null,"K",null,13,{"$f":"(D23-C23)*$C$6","v":2860},{"$f":"IF(C14=0,\"Imposible\",E23/C14)","v":63.734323487210439},{"$f":"IF($C$17=\"Imposible\",\"\",C14*$C$17/$C$6)","v":13},{"$f":"IF($C$17=\"Imposible\",\"\",G23+C23)","v":13},{"$f":"IF($C$17=\"Imposible\",\"\",IF(AND(ABS(G23-(D23-C23))>0.1,F23<>$C$17,D23>0),\"Objetivo inalcanzable\",\"\"))","v":""}]
[null,"Fe",null,null,{"$f":"(D24-C24)*$C$6","v":0},{"$f":"IF(C15=0,\"Imposible\",E24/C15)","v":"Imposible"},{"$f":"IF($C$17=\"Imposible\",\"\",C15*$C$17/$C$6)","v":0},{"$f":"IF($C$17=\"Imposible\",\"\",G24+C24)","v":0},{"$f":"IF($C$17=\"Imposible\",\"\",IF(AND(ABS(G24-(D24-C24))>0.1,F24<>$C$17,D24>0),\"Objetivo inalcanzable\",\"\"))","v":""}]
[]
[]
[]
[]
[]
[null,"Esta calculadora toma una disolución existente y ajusta la dosis para un determinado objetivo N/P/K (notar que puede ser imposible alcanzar determinadas proporciones si la disolución ha sido diseñada con otras proporciones objetivo diferentes).\nEl uso habitual de esta herramienta será para ajustar la dosis a una columna de agua diferente, manteniendo las proporciones de la disolución. O para cambiar de maneral proporcional la cantidad de N/P/K que se quiere añadir."]

{"sheet":"Calculador Manual","index":3,"n_rows":37,"n_cols":31,"rows_kept":37,"cut":false,"hidden":false,"merged":[[5,4,12,9]]}
[null,null,"CALCULADORAS DE ABONADO",null,null,null,null,null,"(Volver a Notas)"]
[null,null,"www.acuariofiliamadrid.org",null,null,null,null,null,"(c) carlosterre, 2014"]
[null,null,null,null,null,null,null,null,null,null,null,null,null,null,null,null,null,null,null,null,null,null,null,null,null,null,"Principios",null,"Formulas",null,"Disoluciones"]
["Calculador de Dosis para Disolución NPK Existente",null,null,null,null,null,null,null,null,null,null,null,null,null,null,null,null,null,null,null,null,null,null,null,null,null,{"$f":"IF('Calculador de Disoluciones'!AA4=\"\",\"\",'Calculador de Disoluciones'!AA4)","v":"K"},null,{"$f":"IF('Calculador de Disoluciones'!AP4=\"\",\"\",'Calculador de Disoluciones'!AP4)","v":"K2HPO4"},null,{"$f":"IF('Calculador de Disoluciones'!BE4=\"\",\"\",'Calculador de Disoluciones'!BE4)","v":1}]
[null,null,null,null,null,null,null,null,null,null,null,null,null,null,null,null,null,null,null,null,null,null,null,null,null,null,{"$f":"IF('Calculador de Disoluciones'!AA5=\"\",\"\",'Calculador de Disoluciones'!AA5)","v":"N"},null,{"$f":"IF('Calculador de Disoluciones'!AP5=\"\",\"\",'Calculador de Disoluciones'!AP5)","v":"K2SO4"},null,{"$f":"IF('Calculador de Disoluciones'!BE5=\"\",\"\",'Calculador de Disoluciones'!BE5)","v":2}]
[null,"Volumen de la columna de agua",200,"L","Esta calculadora es para disoluciones ya creadas, para poder incorporarlas a la base de datos y para determinar la dosis necesaria para lograr una concentración objetivo en el tanque dado un criterio (notar que como la disolución viene dada, la dosis se calcula sobre un sólo criterio (NO3, PO4 ó K) pues al estar ya creada la disolución las proporciones de cada uno vienen dadas. \nEsta calculadora toma como datos: a) el volumen de la columna de agua sobre la que trabajar; b) el volumen de disolución que se ha creado; c) el criterio para el cálculo de la dosis que proporciona la concentración objetivo; d) las concentraciones iniciales en el tanque; y e) las concentraciones objetivo de ión nitrato (NO3), ión fosfato (PO4) y potasio (K) para el tanque.\nComo resultado proporciona la dosis de disolución que proporciona la concentración objetivo para el criterio elegido, e informa de los desajustes de las otras concentraciones si existen.",null,null,null,null,null,null,null,null,null,null,null,null,null,null,null,null,null,null,null,null,null,{"$f":"IF('Calculador de Disoluciones'!AA6=\"\",\"\",'Calculador de Disoluciones'!AA6)","v":"NO3"},null,{"$f":"IF('Calculador de Disoluciones'!AP6=\"\",\"\",'Calculador de Disoluciones'!AP6)","v":"K3PO4"},null,{"$f":"IF('Calculador de Disoluciones'!BE6=\"\",\"\",'Calculador de Disoluciones'!BE6)","v":3}]
[null,"Volumen de disolución",500,"mL ó cc",null,null,null,null,null,null,null,null,null,null,null,null,null,null,null,null,null,null,null,null,null,null,{"$f":"IF('Calculador de Disoluciones'!AA7=\"\",\"\",'Calculador de Disoluciones'!AA7)","v":"P"},null,{"$f":"IF('Calculador de Disoluciones'!AP7=\"\",\"\",'Calculador de Disoluciones'!AP7)","v":"KH2PO4"},null,{"$f":"IF('Calculador de Disoluciones'!BE7=\"\",\"\",'Calculador de Disoluciones'!BE7)","v":"(en blanco)"}]
[null,"Criterio de ajuste de dosis","NO3",null,null,null,null,null,null,null,null,null,null,null,null,null,null,null,null,null,null,null,null,null,null,null,{"$f":"IF('Calculador de Disoluciones'!AA8=\"\",\"\",'Calculador de Disoluciones'!AA8)","v":"PO4"},null,{"$f":"IF('Calculador de Disoluciones'!AP8=\"\",\"\",'Calculador de Disoluciones'!AP8)","v":"KNO3"},null,{"$f":"IF('Calculador de Disoluciones'!BE8=\"\",\"\",'Calculador de Disoluciones'!BE8)","v":4}]
[null,"Volumen por pulsación de dosificador",1.2,"mL",null,null,null,null,null,null,null,null,null,null,null,null,null,null,null,null,null,null,null,null,null,null,{"$f":"IF('Calculador de Disoluciones'!AA9=\"\",\"\",'Calculador de Disoluciones'!AA9)","v":"(en blanco)"},null,{"$f":"IF('Calculador de Disoluciones'!AP9=\"\",\"\",'Calculador de Disoluciones'!AP9)","v":"(en blanco)"},null,{"$f":"IF('Calculador de Disoluciones'!BE9=\"\",\"\",'Calculador de Disoluciones'!BE9)","v":""}]
[null,"DOSIS: Volumen de dosis de disolución",{"$f":"OFFSET($B$21,0,MATCH($C$8,$C$15:$E$15,0))","v":2.5637860168709934},"mL",null,null,null,null,null,null,null,null,null,null,null,null,null,null,null,null,null,null,null,null,null,null,{"$f":"IF('Calculador de Disoluciones'!AA10=\"\",\"\",'Calculador de Disoluciones'!AA10)","v":""},null,{"$f":"IF('Calculador de Disoluciones'!AP10=\"\",\"\",'Calculador de Disoluciones'!AP10)","v":""},null,{"$f":"IF('Calculador de Disoluciones'!BE10=\"\",\"\",'Calculador de Disoluciones'!BE10)","v":""}]
[null,{"$f":"\"DOSIS: Pulsaciones de dosificador de \"&TEXT(C9,\"0.0\")&\"mL\"","v":"DOSIS: Pulsaciones de dosificador de 1.2mL"},{"$f":"C10/$C$9","v":2.1364883473924947},"pulsaciones/dosis"]
[null,"Número de dosis preparadas",{"$f":"C7/C10","v":195.02407638927355},"dosis"]
[]
[null,"OBJETIVOS",{"$f":"IF(C15=$C$8,\"Selected\",\"\")","v":"Selected"},{"$f":"IF(D15=$C$8,\"Selected\",\"\")","v":""},{"$f":"IF(E15=$C$8,\"Selected\",\"\")","v":""}]
[null,"Nutrientes objetivo para la disolución","NO3","PO4","K"]
[null,"Nombre del principio",{"$f":"VLOOKUP(C$15,MasasPorFormula,2,FALSE)","v":"Nitrato ión"},{"$f":"VLOOKUP(D$15,MasasPorFormula,2,FALSE)","v":"Fosfato ión"},{"$f":"VLOOKUP(E$15,MasasPorFormula,2,FALSE)","v":"Potasio"}]
[null,"Concetración inicial en tanque (mg/L ó ppm)",0,0,0]
[null,"Objetivo en tanque (mg/L ó ppm)",5,0.1,3,{"$f":"\"Este objetivo se deberá alcanzar en el tanque de \"&TEXT($C$6,\"0\")&\" L añadiendo 1 dosis de disolución.\"","v":"Este objetivo se deberá alcanzar en el tanque de 200 L añadiendo 1 dosis de disolución."}]
[null,"Defecto en tanque (mg/L)",{"$f":"C18-C17","v":5},{"$f":"D18-D17","v":0.1},{"$f":"E18-E17","v":3},{"$f":"\"Este objetivo se añadirá con 1 dosis de disolución al tanque de \"&TEXT($C$6,\"0\")&\" L.\"","v":"Este objetivo se añadirá con 1 dosis de disolución al tanque de 200 L."}]
[null,"Defecto en tanque (mg)",{"$f":"(C18-C17)*$C$6","v":1000},{"$f":"(D18-D17)*$C$6","v":20},{"$f":"(E18-E17)*$C$6","v":600}]
[null,"Volumen de disolución para cubrir defecto (mL)",{"$f":"C20/C30","v":2.5637860168709934},{"$f":"D20/D30","v":0.51175556912020737},{"$f":"E20/E30","v":1.5994758053057474}]
[]
[null,"Compuestos que aportan los nutrientes",{"$f":"\"% de \"&C$15","v":"% de NO3"},{"$f":"\"% de \"&D$15","v":"% de PO4"},{"$f":"\"% de \"&E$15","v":"% de K"},"Nombre del compuesto","Masa efectiva de compuesto en disolución (g)","Concentración de compuesto en disolución (mg/mL)","Alerta de concentración"]
[null,"KNO3",{"$f":"IF(ISNA(VLOOKUP(C$15&\" (\"&$B24&\")\",PCMasaPorElementoYFormula,10,FALSE)),0,VLOOKUP(C$15&\" (\"&$B24&\")\",PCMasaPorElementoYFormula,10,FALSE))","v":0.61328325908576586},0,0.38671674091423419,{"$f":"VLOOKUP($B24,MasasPorFormula,2,FALSE)","v":"Nitrato potásico"},318,{"$f":"G24/$C$7*1000","v":636},{"$f":"IF(H24>VLOOKUP($B24,MasasPorFormula,4,FALSE),\"¡Alerta! Aumenta la dosis de disolución.\",\"\")","v":"¡Alerta! Aumenta la dosis de disolución."}]
[null,"KH2PO4",0,0.69787781255970482,0.28730582131887189,{"$f":"VLOOKUP($B25,MasasPorFormula,2,FALSE)","v":"Fosfato monopotásico"},28,{"$f":"G25/$C$7*1000","v":56},{"$f":"IF(H25>VLOOKUP($B25,MasasPorFormula,4,FALSE),\"¡Alerta! Aumenta la dosis de disolución.\",\"\")","v":""}]
[null,"K2SO4",0,0,0.44873779833466282,{"$f":"VLOOKUP($B26,MasasPorFormula,2,FALSE)","v":"Sulfato potásico"},126,{"$f":"G26/$C$7*1000","v":252},{"$f":"IF(H26>VLOOKUP($B26,MasasPorFormula,4,FALSE),\"¡Alerta! Aumenta la dosis de disolución.\",\"\")","v":"¡Alerta! Aumenta la dosis de disolución."}]
[]
[null,null,{"$f":"C$15","v":"NO3"},{"$f":"D$15","v":"PO4"},{"$f":"E$15","v":"K"}]
[null,"Masa efectiva de principio en disolución (g)",{"$f":"SUMPRODUCT(C24:C26,$G24:$G26)","v":195.02407638927355},{"$f":"SUMPRODUCT(D24:D26,$G24:$G26)","v":19.540578751671735},{"$f":"SUMPRODUCT(E24:E26,$G24:$G26)","v":187.56144919782238}]
[null,"Concentración en disolución (mg/mL)",{"$f":"C29*1000/$C$7","v":390.04815277854709},{"$f":"D29*1000/$C$7","v":39.081157503343469},{"$f":"E29*1000/$C$7","v":375.12289839564477}]
[null,"Concentración AÑADIDA al tanque tras 1 dosis (mg/L)",{"$f":"C30*$C$10/$C$6","v":4.9999999999999991},{"$f":"D30*$C$10/$C$6","v":0.50097862565102447},{"$f":"E30*$C$10/$C$6","v":4.808674207574362}]
[null,"Concentración FINAL en tanque tras 1 dosis (mg/L)",{"$f":"C30*$C$10/$C$6+C$17","v":4.9999999999999991},{"$f":"D30*$C$10/$C$6+D$17","v":0.50097862565102447},{"$f":"E30*$C$10/$C$6+E$17","v":4.808674207574362}]
[null,"Alerta de exceso en tanque respecto de objetivo",{"$f":"IF(C32>C18,\"¡Alerta! Exceso de \"&TEXT(C32-C18,\"0.0\")&\" mg/L de \"&C15,\"\")","v":""},{"$f":"IF(D32>D18,\"¡Alerta! Exceso de \"&TEXT(D32-D18,\"0.0\")&\" mg/L de \"&D15,\"\")","v":"¡Alerta! Exceso de 0.4 mg/L de PO4"},{"$f":"IF(E32>E18,\"¡Alerta! Exceso de \"&TEXT(E32-E18,\"0.0\")&\" mg/L de \"&E15,\"\")","v":"¡Alerta! Exceso de 1.8 mg/L de K"},{"$f":"IF(C33&D33&E33=\"\",\"\",\"Las sales seleccionadas proporcionan un exceso respecto del objetivo.\")","v":"Las sales seleccionadas proporcionan un exceso respecto del objetivo."}]
[]
["Nueva Disolución (esta línea sirve para añadir al registro de disoluciones copiando y pegando como valores)"]
[{"$f":"MAX(OFFSET(MarkerDisolucionesPorNumeroTopLeft,1,0,50))+1","v":5},{"$f":"\"Disolución NPK ( \"&TEXT(C31,\"0.0\")&\" / \"&TEXT(D31,\"0.0\")&\" / \"&TEXT(E31,\"0.0\")&\" ) para \"&$C$6&\"L de agua y dosis de \"&TEXT($C$8,\"0.0\")&\"mL\"","v":"Disolución NPK ( 5.0 / 0.5 / 4.8 ) para 200L de agua y dosis de NO3mL"},{"$f":"DAY(TODAY())&\"-\"&MONTH(TODAY())&\"-\"&YEAR(TODAY())","v":"3-9-2014"},{"$f":"C30","v":390.04815277854709},{"$f":"D30","v":39.081157503343469},{"$f":"E30","v":375.12289839564477},0,{"$f":"C6","v":200},{"$f":"C10","v":2.5637860168709934},{"$f":"IF(H24>0,TEXT(H24,\"0.0\")&\"g \"&B24&\", \",\"\")&IF(H25>0,TEXT(H25,\"0.0\")&\"g \"&B25&\", \",\"\")&IF(H26>0,TEXT(H26,\"0.0\")&\"g \"&B26&\", \",\"\")&\"en \"&TEXT($C$7,\"0\")&\"mL de agua\"","v":"636.0g KNO3, 56.0g KH2PO4, 252.0g K2SO4, en 500mL de agua"}]
["#","Descripción","Fecha","Concentración NO3 (mg/mL)","Concentración PO4 (mg/mL)","Concentración K (mg/mL)","Concentración Fe (mg/mL)","Volumen tanque de referencia (L)","Volumen dosis de referencia (mL)","Composición (resumen)"]

{"sheet":"Combinador de Disoluciones","index":4,"n_rows":36,"n_cols":31,"rows_kept":36,"cut":false,"hidden":false,"merged":[]}
[null,null,"CALCULADORAS DE ABONADO",null,null,null,null,null,"(Volver a Notas)"]
[null,null,"www.acuariofiliamadrid.org",null,null,null,null,null,"(c) carlosterre, 2014"]
[null,null,null,null,null,null,null,null,null,null,null,null,null,null,null,null,null,null,null,null,null,null,null,null,null,null,"Principios",null,"Formulas",null,"Disoluciones"]
["Combinador de Disoluciones en Base de Datos",null,null,null,null,null,null,null,null,null,null,null,null,null,null,null,null,null,null,null,null,null,null,null,null,null,{"$f":"IF('Calculador de Disoluciones'!AA4=\"\",\"\",'Calculador de Disoluciones'!AA4)","v":"K"},null,{"$f":"IF('Calculador de Disoluciones'!AP4=\"\",\"\",'Calculador de Disoluciones'!AP4)","v":"K2HPO4"},null,{"$f":"IF('Calculador de Disoluciones'!BE4=\"\",\"\",'Calculador de Disoluciones'!BE4)","v":1}]
[null,null,null,null,null,null,null,null,null,null,null,null,null,null,null,null,null,null,null,null,null,null,null,null,null,null,{"$f":"IF('Calculador de Disoluciones'!AA5=\"\",\"\",'Calculador de Disoluciones'!AA5)","v":"N"},null,{"$f":"IF('Calculador de Disoluciones'!AP5=\"\",\"\",'Calculador de Disoluciones'!AP5)","v":"K2SO4"},null,{"$f":"IF('Calculador de Disoluciones'!BE5=\"\",\"\",'Calculador de Disoluciones'!BE5)","v":2}]
[null,"Volumen de la columna de agua",220,"L",null,null,null,null,null,null,null,null,null,null,null,null,null,null,null,null,null,null,null,null,null,null,{"$f":"IF('Calculador de Disoluciones'!AA6=\"\",\"\",'Calculador de Disoluciones'!AA6)","v":"NO3"},null,{"$f":"IF('Calculador de Disoluciones'!AP6=\"\",\"\",'Calculador de Disoluciones'!AP6)","v":"K3PO4"},null,{"$f":"IF('Calculador de Disoluciones'!BE6=\"\",\"\",'Calculador de Disoluciones'!BE6)","v":3}]
[null,"Volumen de disolución combinada final",1500,"mL",null,null,null,null,null,null,null,null,null,null,null,null,null,null,null,null,null,null,null,null,null,null,{"$f":"IF('Calculador de Disoluciones'!AA7=\"\",\"\",'Calculador de Disoluciones'!AA7)","v":"P"},null,{"$f":"IF('Calculador de Disoluciones'!AP7=\"\",\"\",'Calculador de Disoluciones'!AP7)","v":"KH2PO4"},null,{"$f":"IF('Calculador de Disoluciones'!BE7=\"\",\"\",'Calculador de Disoluciones'!BE7)","v":"(en blanco)"}]
[null,"Volumen por pulsación de dosificador",1.2,"mL/pulsación",null,null,null,null,null,null,null,null,null,null,null,null,null,null,null,null,null,null,null,null,null,null,{"$f":"IF('Calculador de Disoluciones'!AA8=\"\",\"\",'Calculador de Disoluciones'!AA8)","v":"PO4"},null,{"$f":"IF('Calculador de Disoluciones'!AP8=\"\",\"\",'Calculador de Disoluciones'!AP8)","v":"KNO3"},null,{"$f":"IF('Calculador de Disoluciones'!BE8=\"\",\"\",'Calculador de Disoluciones'!BE8)","v":4}]
[null,"Volumen de dosis de disolución",{"$f":"F28","v":53.846153846153854},"mL/dosis",null,null,null,null,null,null,null,null,null,null,null,null,null,null,null,null,null,null,null,null,null,null,{"$f":"IF('Calculador de Disoluciones'!AA9=\"\",\"\",'Calculador de Disoluciones'!AA9)","v":"(en blanco)"},null,{"$f":"IF('Calculador de Disoluciones'!AP9=\"\",\"\",'Calculador de Disoluciones'!AP9)","v":"(en blanco)"},null,{"$f":"IF('Calculador de Disoluciones'!BE9=\"\",\"\",'Calculador de Disoluciones'!BE9)","v":""}]
[null,{"$f":"\"Pulsaciones de dosificador de \"&TEXT($C$8,\"0.0\")&\"mL\"","v":"Pulsaciones de dosificador de 1.2mL"},{"$f":"C9/$C$8","v":44.871794871794883},"pulsaciones/dosis de la disolución combinada.",null,null,null,null,null,null,null,null,null,null,null,null,null,null,null,null,null,null,null,null,null,null,{"$f":"IF('Calculador de Disoluciones'!AA10=\"\",\"\",'Calculador de Disoluciones'!AA10)","v":""},null,{"$f":"IF('Calculador de Disoluciones'!AP10=\"\",\"\",'Calculador de Disoluciones'!AP10)","v":""},null,{"$f":"IF('Calculador de Disoluciones'!BE10=\"\",\"\",'Calculador de Disoluciones'!BE10)","v":""}]
[null,{"$f":"\"Número de dosis en disolución combinada de \"&TEXT($C$7/1000,\"0.0\")&\"L\"","v":"Número de dosis en disolución combinada de 1.5L"},{"$f":"C7/C9","v":27.857142857142854},"dosis"]
[]
[null,"OBJETIVOS","NO3","PO4","K"]
[null,"Concetración inicial en tanque (mg/L ó ppm)"]
[null,"Objetivo en tanque (mg/L ó ppm)",10,1,13]
[null,"Defecto en tanque (mg/L ó ppm)",{"$f":"C15-C14","v":10},{"$f":"D15-D14","v":1},{"$f":"E15-E14","v":13}]
[null,"Defecto en tanque (mg)",{"$f":"C16*$C$6","v":2200},{"$f":"D16*$C$6","v":220},{"$f":"E16*$C$6","v":2860}]
[]
[null,null,"Disolución 1","Disolución 2","Disolución 3"]
[null,"Selección",3,1,4]
[3,{"$f":"VLOOKUP(\"#\",DisolucionesPorNumero,$A21,FALSE)","v":"Fecha"},{"$f":"VLOOKUP(C$20,DisolucionesPorNumero,$A21,FALSE)","v":"19-04-2014"},"19-04-2014","19-7-2014"]
[2,"Descripción","Disolución NPK ( 5.0 / 0.5 / 5.0 ) para 110L de agua y dosis de 10.0mL","Disolución N ( 10.0 / 0.0 / 6.3 ) para 220L de agua y dosis de 12.0mL","Disolución NPK ( 0.0 / 0.0 / 13.0 ) para 220L de agua y dosis de 60.0mL"]
[10,"Composición (resumen)","89.7g KNO3, 7.9g KH2PO4, 40.2g K2SO4, en 1000mL de agua","298.9g KNO3, en 1000mL de agua","106.2g K2SO4, en 1000mL de agua"]
[4,"Concentración NO3 (mg/mL)",55,183.33333333333334,0]
[5,"Concentración PO4 (mg/mL)",5.5,0,0]
[6,"Concentración K (mg/mL)",54.999999999999993,115.60411623382453,47.666666666666664]
[null,{"$f":"\"Pulsaciones de dosificador de \"&TEXT($C$8,\"0.0\")&\"mL\"","v":"Pulsaciones de dosificador de 1.2mL"},{"$f":"C28/$C$8","v":33.333333333333336},{"$f":"D28/$C$8","v":-1.4802973661668755E-15},{"$f":"E28/$C$8","v":11.538461538461545},"Total","Check","Concentración AÑADIDA al tanque (mg/L)","Concentración FINAL en tanque (mg/L)","Concentración en disolución (mg/mL)"]
[null,"Volumen de cada disolución en 1 dosis final (mL/dosis)",{"$f":"TRANSPOSE(MMULT(MINVERSE($C$24:$E$26),TRANSPOSE($C$17:$E$17)))","v":40},-1.7763568394002505E-15,13.846153846153854,{"$f":"SUM(C28:E28)","v":53.846153846153854}]
[null,"Aporte NO3 (mg)",{"$f":"C$28*C24","v":2200},-3.256654205567126E-13,0,{"$f":"SUM(C29:E29)","v":2199.9999999999995},{"$f":"IF(F29=C17,\"OK\",\"Error\")","v":"OK"},{"$f":"F29/$C$6","v":9.9999999999999982},{"$f":"H29+C14","v":9.9999999999999982},{"$f":"F29/$C$9","v":40.85714285714284}]
[null,"Aporte PO4 (mg)",220,0,0,{"$f":"SUM(C30:E30)","v":220},{"$f":"IF(F30=D17,\"OK\",\"Error\")","v":"OK"},{"$f":"F30/$C$6","v":1},{"$f":"H30+D14","v":1},{"$f":"F30/$C$9","v":4.0857142857142854}]
[null,"Aporte K (mg)",2199.9999999999995,-2.0535416253477572E-13,660.00000000000034,{"$f":"SUM(C31:E31)","v":2860},{"$f":"IF(F31=E17,\"OK\",\"Error\")","v":"OK"},{"$f":"F31/$C$6","v":13},{"$f":"H31+E14","v":13},{"$f":"F31/$C$9","v":53.114285714285707}]
[null,{"$f":"\"Volumen de cada disolución para \"&TEXT($C$7/1000,\"0.0\")&\"L de disolución combinada (mL)\"","v":"Volumen de cada disolución para 1.5L de disolución combinada (mL)"},{"$f":"C28*$C$11","v":1114.2857142857142},{"$f":"D28*$C$11","v":-4.9484226240435543E-14},{"$f":"E28*$C$11","v":385.71428571428589},{"$f":"SUM(C32:E32)","v":1500}]
[]
["Nueva Disolución (esta línea sirve para añadir al registro de disoluciones copiando y pegando como valores)"]
[{"$f":"MAX(OFFSET(MarkerDisolucionesPorNumeroTopLeft,1,0,50))+1","v":5},{"$f":"\"Disolución combinada NPK ( \"&TEXT(H29,\"0.0\")&\" / \"&TEXT(H30,\"0.0\")&\" / \"&TEXT(H31,\"0.0\")&\" ) para \"&$C$6&\"L de agua y dosis de \"&TEXT($C$9,\"0.0\")&\"mL\"","v":"Disolución combinada NPK ( 10.0 / 1.0 / 13.0 ) para 220L de agua y dosis de 53.8mL"},{"$f":"DAY(TODAY())&\"-\"&MONTH(TODAY())&\"-\"&YEAR(TODAY())","v":"3-9-2014"},{"$f":"J29","v":40.85714285714284},{"$f":"J30","v":4.0857142857142854},{"$f":"J31","v":53.114285714285707},0,{"$f":"$C$6","v":220},{"$f":"$C$9","v":53.846153846153854},{"$f":"IF(C32>0,TEXT(C32,\"0.0\")&\"mL Disolución#\"&C20&\", \",\"\")&IF(D32>0,TEXT(D32,\"0.0\")&\"mL Disolución#\"&D20&\", \",\"\")&IF(E32>0,TEXT(E32,\"0.0\")&\"mL Disolución#\"&E20&\", \",\"\")&\"para \"&TEXT($C$7,\"0\")&\"mL de disolución combinada\"","v":"1114.3mL Disolución#3, 385.7mL Disolución#4, para 1500mL de disolución combinada"}]
["#","Descripción","Fecha","Concentración NO3 (mg/mL)","Concentración PO4 (mg/mL)","Concentración K (mg/mL)","Concentración Fe (mg/mL)","Volumen tanque de referencia (L)","Volumen dosis de referencia (mL)","Composición (resumen)"]

{"sheet":"Calculador de Dosis de Sales","index":5,"n_rows":35,"n_cols":31,"rows_kept":35,"cut":false,"hidden":false,"merged":[[34,1,37,5]]}
[null,null,"CALCULADORAS DE ABONADO",null,null,null,null,null,"(Volver a Notas)"]
[null,null,"www.acuariofiliamadrid.org",null,null,null,null,null,"(c) carlosterre, 2014"]
[null,null,null,null,null,null,null,null,null,null,null,null,null,null,null,null,null,null,null,null,null,null,null,null,null,null,"Principios",null,"Formulas",null,"Disoluciones"]
["Calculador de Dosis de Sales NPK",null,null,null,null,null,null,null,null,null,null,null,null,null,null,null,null,null,null,null,null,null,null,null,null,null,{"$f":"IF('Calculador de Disoluciones'!AA4=\"\",\"\",'Calculador de Disoluciones'!AA4)","v":"K"},null,{"$f":"IF('Calculador de Disoluciones'!AP4=\"\",\"\",'Calculador de Disoluciones'!AP4)","v":"K2HPO4"},null,{"$f":"IF('Calculador de Disoluciones'!BE4=\"\",\"\",'Calculador de Disoluciones'!BE4)","v":1}]
[null,null,null,null,null,null,null,null,null,null,null,null,null,null,null,null,null,null,null,null,null,null,null,null,null,null,{"$f":"IF('Calculador de Disoluciones'!AA5=\"\",\"\",'Calculador de Disoluciones'!AA5)","v":"N"},null,{"$f":"IF('Calculador de Disoluciones'!AP5=\"\",\"\",'Calculador de Disoluciones'!AP5)","v":"K2SO4"},null,{"$f":"IF('Calculador de Disoluciones'!BE5=\"\",\"\",'Calculador de Disoluciones'!BE5)","v":2}]
[null,"Volumen de la columna de agua",220,"L",null,null,null,null,null,null,null,null,null,null,null,null,null,null,null,null,null,null,null,null,null,null,{"$f":"IF('Calculador de Disoluciones'!AA6=\"\",\"\",'Calculador de Disoluciones'!AA6)","v":"NO3"},null,{"$f":"IF('Calculador de Disoluciones'!AP6=\"\",\"\",'Calculador de Disoluciones'!AP6)","v":"K3PO4"},null,{"$f":"IF('Calculador de Disoluciones'!BE6=\"\",\"\",'Calculador de Disoluciones'!BE6)","v":3}]
[null,"Volumen de disolución",{"$f":"C6*1000","v":220000},"mL ó cc",null,null,null,null,null,null,null,null,null,null,null,null,null,null,null,null,null,null,null,null,null,null,{"$f":"IF('Calculador de Disoluciones'!AA7=\"\",\"\",'Calculador de Disoluciones'!AA7)","v":"P"},null,{"$f":"IF('Calculador de Disoluciones'!AP7=\"\",\"\",'Calculador de Disoluciones'!AP7)","v":"KH2PO4"},null,{"$f":"IF('Calculador de Disoluciones'!BE7=\"\",\"\",'Calculador de Disoluciones'!BE7)","v":"(en blanco)"}]
[null,"Volumen de dosis de disolución",{"$f":"C7","v":220000},"mL",null,null,null,null,null,null,null,null,null,null,null,null,null,null,null,null,null,null,null,null,null,null,{"$f":"IF('Calculador de Disoluciones'!AA8=\"\",\"\",'Calculador de Disoluciones'!AA8)","v":"PO4"},null,{"$f":"IF('Calculador de Disoluciones'!AP8=\"\",\"\",'Calculador de Disoluciones'!AP8)","v":"KNO3"},null,{"$f":"IF('Calculador de Disoluciones'!BE8=\"\",\"\",'Calculador de Disoluciones'!BE8)","v":4}]
[null,"Volumen por pulsación de dosificador",{"$f":"C8","v":220000},"mL",null,null,null,null,null,null,null,null,null,null,null,null,null,null,null,null,null,null,null,null,null,null,{"$f":"IF('Calculador de Disoluciones'!AA9=\"\",\"\",'Calculador de Disoluciones'!AA9)","v":"(en blanco)"},null,{"$f":"IF('Calculador de Disoluciones'!AP9=\"\",\"\",'Calculador de Disoluciones'!AP9)","v":"(en blanco)"},null,{"$f":"IF('Calculador de Disoluciones'!BE9=\"\",\"\",'Calculador de Disoluciones'!BE9)","v":""}]
[null,{"$f":"\"Pulsaciones de dosificador de \"&TEXT(C9,\"0.0\")&\"mL\"","v":"Pulsaciones de dosificador de 220000.0mL"},{"$f":"C8/$C$9","v":1},"pulsaciones/dosis",null,null,null,null,null,null,null,null,null,null,null,null,null,null,null,null,null,null,null,null,null,null,{"$f":"IF('Calculador de Disoluciones'!AA10=\"\",\"\",'Calculador de Disoluciones'!AA10)","v":""},null,{"$f":"IF('Calculador de Disoluciones'!AP10=\"\",\"\",'Calculador de Disoluciones'!AP10)","v":""},null,{"$f":"IF('Calculador de Disoluciones'!BE10=\"\",\"\",'Calculador de Disoluciones'!BE10)","v":""}]
[null,"Número de dosis preparadas",{"$f":"C7/C8","v":1}]
[]
[null,"Principios a aditar con la disolución","NO3","PO4","K"]
[null,"Nombre del principio",{"$f":"VLOOKUP(C$13,MasasPorFormula,2,FALSE)","v":"Nitrato ión"},{"$f":"VLOOKUP(D$13,MasasPorFormula,2,FALSE)","v":"Fosfato ión"},{"$f":"VLOOKUP(E$13,MasasPorFormula,2,FALSE)","v":"Potasio"}]
[null,"Concetración inicial en tanque (mg/L ó ppm)"]
[null,"Objetivo en tanque (mg/L ó ppm)",10,1,13,{"$f":"\"Este objetivo se alcanzará añadiendo \"&IF(H22>0,TEXT(H22,\"0.00\")&\"g \"&B22&\", \",\"\")&IF(H23>0,TEXT(H23,\"0.00\")&\"g \"&B23&\", \",\"\")&IF(H24>0,TEXT(H24,\"0.00\")&\"g \"&B24&\", \",\"\")&\"en \"&TEXT($C$6,\"0\")&\"L de agua.\"","v":"Este objetivo se alcanzará añadiendo 3.59g KNO3, 0.32g KH2PO4, 3.08g K2SO4, en 220L de agua."}]
[null,"Defecto en tanque (mg)",{"$f":"(C16-C15)*$C$6","v":2200},{"$f":"(D16-D15)*$C$6","v":220},{"$f":"(E16-E15)*$C$6","v":2860}]
[null,"Concentración objetivo en disolución (mg/mL)",{"$f":"C17/$C$8","v":0.01},{"$f":"D17/$C$8","v":1E-3},{"$f":"E17/$C$8","v":1.2999999999999999E-2}]
[null,"Masa de principio en disolución (g)",{"$f":"C18*$C$7/1000","v":2.2000000000000002},{"$f":"D18*$C$7/1000","v":0.22},{"$f":"E18*$C$7/1000","v":2.86}]
[]
[null,"Compuesto que aporta el elemento",{"$f":"\"% de \"&C$13","v":"% de NO3"},{"$f":"\"% de \"&D$13","v":"% de PO4"},{"$f":"\"% de \"&E$13","v":"% de K"},"Nombre del compuesto","Masa teórica de compuesto a añadir (g)","Masa de compuesto a añadir al tanque (g)","Concentración de compuesto en disolución (mg/mL)","Alerta de concentración"]
[null,"KNO3",{"$f":"IF(ISNA(VLOOKUP(C$13&\" (\"&$B22&\")\",PCMasaPorElementoYFormula,10,FALSE)),0,VLOOKUP(C$13&\" (\"&$B22&\")\",PCMasaPorElementoYFormula,10,FALSE))","v":0.61328325908576586},0,0.38671674091423419,{"$f":"VLOOKUP($B22,MasasPorFormula,2,FALSE)","v":"Nitrato potásico"},{"$f":"MMULT(MINVERSE(TRANSPOSE($C$22:$E$24)),TRANSPOSE($C$19:$E$19))","v":3.5872493948058946},{"$f":"MAX(0,G22)","v":3.5872493948058946},{"$f":"H22/$C$7*1000","v":1.630567906729952E-2},{"$f":"IF(I22>VLOOKUP($B22,MasasPorFormula,4,FALSE),\"¡Alerta! Aumenta la dosis de disolución.\",\"\")","v":""}]
[null,"KH2PO4",0,0.69787781255970482,0.28730582131887189,{"$f":"VLOOKUP($B23,MasasPorFormula,2,FALSE)","v":"Fosfato monopotásico"},0.31524143057804777,{"$f":"MAX(0,G23)","v":0.31524143057804777},{"$f":"H23/$C$7*1000","v":1.4329155935365807E-3},{"$f":"IF(I23>VLOOKUP($B23,MasasPorFormula,4,FALSE),\"¡Alerta! Aumenta la dosis de disolución.\",\"\")","v":""}]
[null,"K2SO4",0,0,0.44873779833466282,{"$f":"VLOOKUP($B24,MasasPorFormula,2,FALSE)","v":"Sulfato potásico"},3.0801503956155067,{"$f":"MAX(0,G24)","v":3.0801503956155067},{"$f":"H24/$C$7*1000","v":1.4000683616434121E-2},{"$f":"IF(I24>VLOOKUP($B24,MasasPorFormula,4,FALSE),\"¡Alerta! Aumenta la dosis de disolución.\",\"\")","v":""}]
[]
[null,null,{"$f":"C$13","v":"NO3"},{"$f":"D$13","v":"PO4"},{"$f":"E$13","v":"K"}]
[null,"Masa teórica de principio en disolución (g) -check-",{"$f":"SUMPRODUCT(C22:C24,$G22:$G24)","v":2.2000000000000002},{"$f":"SUMPRODUCT(D22:D24,$G22:$G24)","v":0.22000000000000003},{"$f":"SUMPRODUCT(E22:E24,$G22:$G24)","v":2.86}]
[null,"Masa efectiva de principio en disolución (g)",{"$f":"SUMPRODUCT(C22:C24,$H22:$H24)","v":2.2000000000000002},{"$f":"SUMPRODUCT(D22:D24,$H22:$H24)","v":0.22000000000000003},{"$f":"SUMPRODUCT(E22:E24,$H22:$H24)","v":2.86}]
[null,"Concentración efectiva en disolución (mg/mL)",{"$f":"C28*1000/$C$7","v":0.01},{"$f":"D28*1000/$C$7","v":1E-3},{"$f":"E28*1000/$C$7","v":1.2999999999999999E-2}]
[null,"Concentración AÑADIDA al tanque tras la dosis (mg/L)",{"$f":"C29*$C$8/$C$6","v":10},{"$f":"D29*$C$8/$C$6","v":1},{"$f":"E29*$C$8/$C$6","v":13}]
[null,"Concentración FINAL en tanque tras la dosis (mg/L)",{"$f":"C29*$C$8/$C$6+C$15","v":10},{"$f":"D29*$C$8/$C$6+D$15","v":1},{"$f":"E29*$C$8/$C$6+E$15","v":13}]
[null,"Alerta de exceso en tanque respecto de objetivo",{"$f":"IF(C31>C16,\"¡Alerta! Exceso de \"&TEXT(C31-C16,\"0.0\")&\" mg/L de \"&C13,\"\")","v":""},{"$f":"IF(D31>D16,\"¡Alerta! Exceso de \"&TEXT(D31-D16,\"0.0\")&\" mg/L de \"&D13,\"\")","v":""},{"$f":"IF(E31>E16,\"¡Alerta! Exceso de \"&TEXT(E31-E16,\"0.0\")&\" mg/L de \"&E13,\"\")","v":""},{"$f":"IF(C32&D32&E32=\"\",\"\",\"Las sales seleccionadas proporcionan un exceso respecto del objetivo final deseado en el tanque.\")","v":""}]
[]
[]
[null,"Esta calculadora dice la cantidad de gramos de las sales seleccionadas que se debe añadir al tanque para lograr una determinada concentración objetivo. Toma como datos: a) el volumen de la columna de agua sobre la que trabajar; b) las concentraciones iniciales en el tanque; y c) las concentraciones objetivo de ión nitrato (NO3), ión fosfato (PO4) y potasio (K) para el tanque.\nComo resultado proporciona la cantidad de cada sal que se debe añadir al tanque directamente (se recomienda disolver previamente en una menor cantidad de agua caliente y no añadir los critales directamente al tanque)."]

{"sheet":"Nutrientes","index":6,"n_rows":38,"n_cols":6,"rows_kept":38,"cut":false,"hidden":false,"merged":[]}
[null,null,null,"CALCULADORAS DE ABONADO",null,"(Volver a Notas)"]
[null,null,null,"www.acuariofiliamadrid.org",null,"(c) carlosterre, 2014"]
[]
["Información sobre Nutrientes"]
[]
[null,"Macronutrientes (\"NPK\")"]
[]
[null,"PRIMARIOS","Nitrógeno (N), normalmente en forma de ión nitrato (NO3) aunque las plantas pueden aprovecharlo en otras formas como ión nitrito (NO2) o amonio."]
[null,null,"Fósforo (P), normalmente en forma de ión fosfato (PO4)."]
[null,null,"Potasio (K)"]
[]
[null,"SECUNDARIOS","Azufre (S)"]
[null,null,"Calcio (Ca)"]
[null,null,"Magnesio (Mg)"]
[]
[null,"Micronutrientes o Elementos Traza"]
[]
[null,null,"Hierro (Fe)"]
[null,null,"Manganeso (Mn)"]
[null,null,"Cobre (Cu)"]
[null,null,"Molibdeno (Mb)"]
[null,null,"Zinc (Zn)"]
[]
[null,"Cada elemento tiene una función específica y repercute de manera visible en la salud de las plantas. La siguiente tabla proporciona una guía simple."]
[]
[null,"Nutriente","Función","Su deficiencia provoca …","Su exceso provoca …"]
[null,"Nitrógeno (N)","Crecimiento de las hojas y tallos","Amarilleo de las hojas de más edad, las hojas inferiores; retraso o atrofia del crecimiento"]
[null,"Fósforo (P)","Desarrollo y crecimiento de las raíces, la floración, la transferencia de la energía almacenada dentro de la planta","Coloración violácea, raíces atrofiadas."]
[null,"Potasio (K)","Regula la absorción de nutrientes por la planta, promueve la floración, y la resistencia a las enfermedades.\n\nLas plantas en general necesitan menos potasio en la floración, excesivo K disminuye la producción de fruta.","Crecimiento irregular, bordes marrones de las hojas."]
[null,"Azufre (S)","Síntesis en plantas de proteínas y vitaminas.\n\nAyuda a la planta a utilizar nitrógeno y potasio eficazmente.\n\nTambién reduce el valor del pH (para agua alcalina o dura).","Las plantas que son pequeñas y delgadas, con tallos cortos y delgados. Crecimiento retardado y la madurez a menudo se retrasa. En la mayoría de las plantas, las hojas jóvenes se vuelven verdes claro o amarillento, con nervios de color más claro aún.\n\nAfecta a las hojas jóvenes porque el azufre y el calcio se mueven poco en el tejido de la planta. El crecimiento es lento y las hojas tienden a ser frágiles y crecer más estrechas de lo normal."]
[null,"Calcio (Ca)","El calcio juega un papel importante para el proceso de crecimiento de las plantas.\n\nRegula la división de las células y contribuye a la estabilidad de la planta. Así que una planta siempre debe tener suficiente cantidad de calcio.","Manchas amarillas / marrones en las hojas más viejas, que pueden estar rodeadas por un borde marrón bien delimitado."]
[null,"Magnesio (Mg)","Es esencial para la fotosíntesis y la transferencia de energía. Es un componente básico para la clorofila (hoja verde).","Will breakdown the medium-old leaves under the flowering top to support young parts of the plant. Descompondrá las hojas de edad media durante la floración para apoyar a las partes jóvenes de la planta. \n\nEsta descomposición es visible en forma de manchas marrones como oxidadas y/o manchas difusas amarillas entre los nervios."]
[null,"Hierro (Fe)","Un catalizador clave en la producción de clorofila.\n\nUn pH alto impide que las plantas absorvan el Fe. El hierro es difícil de aborver para las plantas y se mueve lentamente en la planta.","Vuelve las hojas nuevas de color amarillo pálido o blanco, mientras que los nervios permanecen verdes."]
[null,"Manganeso (Mn)","Trabaja con enzimas de la planta para reducir los nitratos antes de producir las proteínas.","Vuelve las hojas jóvenes de un color amarillo o marrón moteado."]
[null,"Boron (B)","Necesario para la división celular y la formación de proteínas, también para la polinización y producción de semillas.","Crecimiento relentizado."]
[null,"Cobre (Cu)","Catalizador para varias enzimas.","Marchita los nuevos brotes y provoca un crecimiento irregular.","El exceso de Cu causa la muerte repentina de las plantas."]
[null,"Molibdeno (Mb)","Ayuda a proteínas de formulario, ayuda a fijar el nitrógeno del aire.","Hace palidecer las hojas, con bordes de aspecto chamuscado y hace crecer de manera irregular la planta."]
[null,"Zinc (Zn)","Un catalizador: debe estar presente en cantidades ínfimas para el crecimiento vegetal.","Produce retraso del crecimiento (reducción del crecimiento), color amarillento y rizado de las hojas pequeñas."]

{"sheet":"Sales y Elementos","index":7,"n_rows":145,"n_cols":16,"rows_kept":145,"cut":false,"hidden":false,"merged":[]}
[null,null,null,null,"CALCULADORAS DE ABONADO",null,null,null,null,null,"(Volver a Notas)"]
[null,null,null,null,"www.acuariofiliamadrid.org",null,null,null,null,null,"(c) carlosterre, 2014"]
[]
["Base de Datos de Sales y Elementos/Compuestos Nutrientes"]
[]
[null,"PCMasaPorElementoYFormula",null,null,null,null,null,null,null,null,null,null,"MasasPorFormula"]
[null,1,2,3,4,5,6,7,8,9,10,null,1,2,3,4]
[null,"Elemento y Fórmula","Fórmula","Nombre de fórmula","Masa molecular (u/molécula)","Elemento o compuesto","Nombre de elemento o compuesto","Masa de elemento o compuesto (u/atomo o u/molécula)","Unidades de elemento o compuesto (unidad/mol.)","Masa total de elemento (u/molécula)","Masa de elemento (% de masa molecular)",null,"Fórmula","Nombre","Masa (u/molecula ó u/átomo)","Masa de saturación en condiciones normales (g/L)"]
[null,{"$f":"F9&\" (\"&C9&\")\"","v":"N (K2SO4)"},"K2SO4",{"$f":"VLOOKUP($C9,MasasPorFormula,2,FALSE)","v":"Sulfato potásico"},{"$f":"VLOOKUP($C9,MasasPorFormula,3,FALSE)","v":174.25899999999999},"N",{"$f":"VLOOKUP($F9,MasasPorFormula,2,FALSE)","v":"Nitrógeno"},{"$f":"VLOOKUP($F9,MasasPorFormula,3,FALSE)","v":14.006740000000001},0,{"$f":"H9*I9","v":0},{"$f":"J9/E9","v":0},null,"K2SO4","Sulfato potásico",174.25899999999999,120]
[null,"P (K2SO4)","K2SO4","Sulfato potásico",174.25899999999999,"P","Fósforo",30.973762000000001,0,0,0,null,"KNO3","Nitrato potásico",101.1032,360]
[null,"K (K2SO4)","K2SO4","Sulfato potásico",174.25899999999999,"K","Potasio",39.098300000000002,2,78.196600000000004,0.44873779833466282,null,"KH2PO4","Fosfato monopotásico",136.08600000000001,220]
[null,"N (KNO3)","KNO3","Nitrato potásico",101.1032,"N","Nitrógeno",14.006740000000001,1,14.006740000000001,0.13853903734006442,null,"N","Nitrógeno",14.006740000000001]
[null,"P (KNO3)","KNO3","Nitrato potásico",101.1032,"P","Fósforo",30.973762000000001,0,0,0,null,"P","Fósforo",30.973762000000001]
[null,"K (KNO3)","KNO3","Nitrato potásico",101.1032,"K","Potasio",39.098300000000002,1,39.098300000000002,0.38671674091423419,null,"K","Potasio",39.098300000000002]
[null,"N (KH2PO4)","KH2PO4","Fosfato monopotásico",136.08600000000001,"N","Nitrógeno",14.006740000000001,0,0,0,null,"NO3","Nitrato ión",62.004899999999999]
[null,"P (KH2PO4)","KH2PO4","Fosfato monopotásico",136.08600000000001,"P","Fósforo",30.973762000000001,1,30.973762000000001,0.22760432373646075,null,"PO4","Fosfato ión",94.971400000000003]
[null,"K (KH2PO4)","KH2PO4","Fosfato monopotásico",136.08600000000001,"K","Potasio",39.098300000000002,1,39.098300000000002,0.28730582131887189,null,"K2HPO4","Fosfato dipotásico",174.17605]
[null,"NO3 (KNO3)","KNO3","Nitrato potásico",101.1032,"NO3","Nitrato ión",62.004899999999999,1,62.004899999999999,0.61328325908576586,null,"K3PO4","Fosfato tripotásico",212.26641000000001]
[null,"PO4 (KH2PO4)","KH2PO4","Fosfato monopotásico",136.08600000000001,"PO4","Fosfato ión",94.971400000000003,1,94.971400000000003,0.69787781255970482]
[null,"PO4 (K2HPO4)","K2HPO4","Fosfato dipotásico",174.17605,"PO4","Fosfato ión",94.971400000000003,1,94.971400000000003,0.54526095866796842]
[null,"K (K2HPO4)","K2HPO4","Fosfato dipotásico",174.17605,"K","Potasio",39.098300000000002,2,78.196600000000004,0.44895150624899349]
[null,"PO4 (K3PO4)","K3PO4","Fosfato tripotásico",212.26641000000001,"PO4","Fosfato ión",94.971400000000003,1,94.971400000000003,0.44741605607783164]
[null,"K (K3PO4)","K3PO4","Fosfato tripotásico",212.26641000000001,"K","Potasio",39.098300000000002,3,117.29490000000001,0.55258342570546137]
[null," ()",null,{"$error":"#N/A"},{"$error":"#N/A"},null,{"$error":"#N/A"},{"$error":"#N/A"},null,{"$error":"#N/A"},{"$error":"#N/A"}]
[null," ()",null,{"$error":"#N/A"},{"$error":"#N/A"},null,{"$error":"#N/A"},{"$error":"#N/A"},null,{"$error":"#N/A"},{"$error":"#N/A"}]
[null," ()",null,{"$error":"#N/A"},{"$error":"#N/A"},null,{"$error":"#N/A"},{"$error":"#N/A"},null,{"$error":"#N/A"},{"$error":"#N/A"}]
[null," ()",null,{"$error":"#N/A"},{"$error":"#N/A"},null,{"$error":"#N/A"},{"$error":"#N/A"},null,{"$error":"#N/A"},{"$error":"#N/A"}]
[null," ()",null,{"$error":"#N/A"},{"$error":"#N/A"},null,{"$error":"#N/A"},{"$error":"#N/A"},null,{"$error":"#N/A"},{"$error":"#N/A"}]
[null," ()",null,{"$error":"#N/A"},{"$error":"#N/A"},null,{"$error":"#N/A"},{"$error":"#N/A"},null,{"$error":"#N/A"},{"$error":"#N/A"}]
[null," ()",null,{"$error":"#N/A"},{"$error":"#N/A"},null,{"$error":"#N/A"},{"$error":"#N/A"},null,{"$error":"#N/A"},{"$error":"#N/A"}]
[null," ()",null,{"$error":"#N/A"},{"$error":"#N/A"},null,{"$error":"#N/A"},{"$error":"#N/A"},null,{"$error":"#N/A"},{"$error":"#N/A"}]
[null," ()",null,{"$error":"#N/A"},{"$error":"#N/A"},null,{"$error":"#N/A"},{"$error":"#N/A"},null,{"$error":"#N/A"},{"$error":"#N/A"}]
[null," ()",null,{"$error":"#N/A"},{"$error":"#N/A"},null,{"$error":"#N/A"},{"$error":"#N/A"},null,{"$error":"#N/A"},{"$error":"#N/A"}]
[null," ()",null,{"$error":"#N/A"},{"$error":"#N/A"},null,{"$error":"#N/A"},{"$error":"#N/A"},null,{"$error":"#N/A"},{"$error":"#N/A"}]
[null," ()",null,{"$error":"#N/A"},{"$error":"#N/A"},null,{"$error":"#N/A"},{"$error":"#N/A"},null,{"$error":"#N/A"},{"$error":"#N/A"}]
[null," ()",null,{"$error":"#N/A"},{"$error":"#N/A"},null,{"$error":"#N/A"},{"$error":"#N/A"},null,{"$error":"#N/A"},{"$error":"#N/A"}]
[null," ()",null,{"$error":"#N/A"},{"$error":"#N/A"},null,{"$error":"#N/A"},{"$error":"#N/A"},null,{"$error":"#N/A"},{"$error":"#N/A"}]
[null," ()",null,{"$error":"#N/A"},{"$error":"#N/A"},null,{"$error":"#N/A"},{"$error":"#N/A"},null,{"$error":"#N/A"},{"$error":"#N/A"}]
[null," ()",null,{"$error":"#N/A"},{"$error":"#N/A"},null,{"$error":"#N/A"},{"$error":"#N/A"},null,{"$error":"#N/A"},{"$error":"#N/A"}]
[null," ()",null,{"$error":"#N/A"},{"$error":"#N/A"},null,{"$error":"#N/A"},{"$error":"#N/A"},null,{"$error":"#N/A"},{"$error":"#N/A"}]
[null,{"$f":"F41&\" (\"&C41&\")\"","v":" ()"},null,{"$f":"VLOOKUP($C41,MasasPorFormula,2,FALSE)","v":{"$error":"#N/A"}},{"$f":"VLOOKUP($C41,MasasPorFormula,3,FALSE)","v":{"$error":"#N/A"}},null,{"$error":"#N/A"},{"$f":"VLOOKUP($F41,MasasPorFormula,3,FALSE)","v":{"$error":"#N/A"}},null,{"$f":"H41*I41","v":{"$error":"#N/A"}},{"$f":"J41/E41","v":{"$error":"#N/A"}}]
[null," ()",null,{"$error":"#N/A"},{"$error":"#N/A"},null,{"$error":"#N/A"},{"$error":"#N/A"},null,{"$error":"#N/A"},{"$error":"#N/A"}]
[null," ()",null,{"$error":"#N/A"},{"$error":"#N/A"},null,{"$error":"#N/A"},{"$error":"#N/A"},null,{"$error":"#N/A"},{"$error":"#N/A"}]
[null," ()",null,{"$error":"#N/A"},{"$error":"#N/A"},null,{"$error":"#N/A"},{"$error":"#N/A"},null,{"$error":"#N/A"},{"$error":"#N/A"}]
[null," ()",null,{"$error":"#N/A"},{"$error":"#N/A"},null,{"$error":"#N/A"},{"$error":"#N/A"},null,{"$error":"#N/A"},{"$error":"#N/A"}]
[null," ()",null,{"$error":"#N/A"},{"$error":"#N/A"},null,{"$error":"#N/A"},{"$error":"#N/A"},null,{"$error":"#N/A"},{"$error":"#N/A"}]
[null," ()",null,{"$error":"#N/A"},{"$error":"#N/A"},null,{"$error":"#N/A"},{"$error":"#N/A"},null,{"$error":"#N/A"},{"$error":"#N/A"}]
[null," ()",null,{"$error":"#N/A"},{"$error":"#N/A"},null,{"$error":"#N/A"},{"$error":"#N/A"},null,{"$error":"#N/A"},{"$error":"#N/A"}]
[null," ()",null,{"$error":"#N/A"},{"$error":"#N/A"},null,{"$error":"#N/A"},{"$error":"#N/A"},null,{"$error":"#N/A"},{"$error":"#N/A"}]
[null," ()",null,{"$error":"#N/A"},{"$error":"#N/A"},null,{"$error":"#N/A"},{"$error":"#N/A"},null,{"$error":"#N/A"},{"$error":"#N/A"}]
[null," ()",null,{"$error":"#N/A"},{"$error":"#N/A"},null,{"$error":"#N/A"},{"$error":"#N/A"},null,{"$error":"#N/A"},{"$error":"#N/A"}]
[null," ()",null,{"$error":"#N/A"},{"$error":"#N/A"},null,{"$error":"#N/A"},{"$error":"#N/A"},null,{"$error":"#N/A"},{"$error":"#N/A"}]
[null," ()",null,{"$error":"#N/A"},{"$error":"#N/A"},null,{"$error":"#N/A"},{"$error":"#N/A"},null,{"$error":"#N/A"},{"$error":"#N/A"}]
[null," ()",null,{"$error":"#N/A"},{"$error":"#N/A"},null,{"$error":"#N/A"},{"$error":"#N/A"},null,{"$error":"#N/A"},{"$error":"#N/A"}]
[null," ()",null,{"$error":"#N/A"},{"$error":"#N/A"},null,{"$error":"#N/A"},{"$error":"#N/A"},null,{"$error":"#N/A"},{"$error":"#N/A"}]
[null," ()",null,{"$error":"#N/A"},{"$error":"#N/A"},null,{"$error":"#N/A"},{"$error":"#N/A"},null,{"$error":"#N/A"},{"$error":"#N/A"}]
[null," ()",null,{"$error":"#N/A"},{"$error":"#N/A"},null,{"$error":"#N/A"},{"$error":"#N/A"},null,{"$error":"#N/A"},{"$error":"#N/A"}]
[null," ()",null,{"$error":"#N/A"},{"$error":"#N/A"},null,{"$error":"#N/A"},{"$error":"#N/A"},null,{"$error":"#N/A"},{"$error":"#N/A"}]
[null," ()",null,{"$error":"#N/A"},{"$error":"#N/A"},null,{"$error":"#N/A"},{"$error":"#N/A"},null,{"$error":"#N/A"},{"$error":"#N/A"}]
[null," ()",null,{"$error":"#N/A"},{"$error":"#N/A"},null,{"$error":"#N/A"},{"$error":"#N/A"},null,{"$error":"#N/A"},{"$error":"#N/A"}]
[null," ()",null,{"$error":"#N/A"},{"$error":"#N/A"},null,{"$error":"#N/A"},{"$error":"#N/A"},null,{"$error":"#N/A"},{"$error":"#N/A"}]
[null," ()",null,{"$error":"#N/A"},{"$error":"#N/A"},null,{"$error":"#N/A"},{"$error":"#N/A"},null,{"$error":"#N/A"},{"$error":"#N/A"}]
[null," ()",null,{"$error":"#N/A"},{"$error":"#N/A"},null,{"$error":"#N/A"},{"$error":"#N/A"},null,{"$error":"#N/A"},{"$error":"#N/A"}]
[null," ()",null,{"$error":"#N/A"},{"$error":"#N/A"},null,{"$error":"#N/A"},{"$error":"#N/A"},null,{"$error":"#N/A"},{"$error":"#N/A"}]
[null," ()",null,{"$error":"#N/A"},{"$error":"#N/A"},null,{"$error":"#N/A"},{"$error":"#N/A"},null,{"$error":"#N/A"},{"$error":"#N/A"}]
[null," ()",null,{"$error":"#N/A"},{"$error":"#N/A"},null,{"$error":"#N/A"},{"$error":"#N/A"},null,{"$error":"#N/A"},{"$error":"#N/A"}]
[null," ()",null,{"$error":"#N/A"},{"$error":"#N/A"},null,{"$error":"#N/A"},{"$error":"#N/A"},null,{"$error":"#N/A"},{"$error":"#N/A"}]
[null," ()",null,{"$error":"#N/A"},{"$error":"#N/A"},null,{"$error":"#N/A"},{"$error":"#N/A"},null,{"$error":"#N/A"},{"$error":"#N/A"}]
[null," ()",null,{"$error":"#N/A"},{"$error":"#N/A"},null,{"$error":"#N/A"},{"$error":"#N/A"},null,{"$error":"#N/A"},{"$error":"#N/A"}]
[null," ()",null,{"$error":"#N/A"},{"$error":"#N/A"},null,{"$error":"#N/A"},{"$error":"#N/A"},null,{"$error":"#N/A"},{"$error":"#N/A"}]
[null," ()",null,{"$error":"#N/A"},{"$error":"#N/A"},null,{"$error":"#N/A"},{"$error":"#N/A"},null,{"$error":"#N/A"},{"$error":"#N/A"}]
[null," ()",null,{"$error":"#N/A"},{"$error":"#N/A"},null,{"$error":"#N/A"},{"$error":"#N/A"},null,{"$error":"#N/A"},{"$error":"#N/A"}]
[null,{"$f":"F73&\" (\"&C73&\")\"","v":" ()"},null,{"$f":"VLOOKUP($C73,MasasPorFormula,2,FALSE)","v":{"$error":"#N/A"}},{"$f":"VLOOKUP($C73,MasasPorFormula,3,FALSE)","v":{"$error":"#N/A"}},null,{"$f":"VLOOKUP($F73,MasasPorFormula,2,FALSE)","v":{"$error":"#N/A"}},{"$f":"VLOOKUP($F73,MasasPorFormula,3,FALSE)","v":{"$error":"#N/A"}},null,{"$f":"H73*I73","v":{"$error":"#N/A"}},{"$f":"J73/E73","v":{"$error":"#N/A"}}]
[null," ()",null,{"$error":"#N/A"},{"$error":"#N/A"},null,{"$error":"#N/A"},{"$error":"#N/A"},null,{"$error":"#N/A"},{"$error":"#N/A"}]
[null," ()",null,{"$error":"#N/A"},{"$error":"#N/A"},null,{"$error":"#N/A"},{"$error":"#N/A"},null,{"$error":"#N/A"},{"$error":"#N/A"}]
[null," ()",null,{"$error":"#N/A"},{"$error":"#N/A"},null,{"$error":"#N/A"},{"$error":"#N/A"},null,{"$error":"#N/A"},{"$error":"#N/A"}]
[null," ()",null,{"$error":"#N/A"},{"$error":"#N/A"},null,{"$error":"#N/A"},{"$error":"#N/A"},null,{"$error":"#N/A"},{"$error":"#N/A"}]
[null," ()",null,{"$error":"#N/A"},{"$error":"#N/A"},null,{"$error":"#N/A"},{"$error":"#N/A"},null,{"$error":"#N/A"},{"$error":"#N/A"}]
[null," ()",null,{"$error":"#N/A"},{"$error":"#N/A"},null,{"$error":"#N/A"},{"$error":"#N/A"},null,{"$error":"#N/A"},{"$error":"#N/A"}]
[null," ()",null,{"$error":"#N/A"},{"$error":"#N/A"},null,{"$error":"#N/A"},{"$error":"#N/A"},null,{"$error":"#N/A"},{"$error":"#N/A"}]
[null," ()",null,{"$error":"#N/A"},{"$error":"#N/A"},null,{"$error":"#N/A"},{"$error":"#N/A"},null,{"$error":"#N/A"},{"$error":"#N/A"}]
[null," ()",null,{"$error":"#N/A"},{"$error":"#N/A"},null,{"$error":"#N/A"},{"$error":"#N/A"},null,{"$error":"#N/A"},{"$error":"#N/A"}]
[null," ()",null,{"$error":"#N/A"},{"$error":"#N/A"},null,{"$error":"#N/A"},{"$error":"#N/A"},null,{"$error":"#N/A"},{"$error":"#N/A"}]
[null," ()",null,{"$error":"#N/A"},{"$error":"#N/A"},null,{"$error":"#N/A"},{"$error":"#N/A"},null,{"$error":"#N/A"},{"$error":"#N/A"}]
[null," ()",null,{"$error":"#N/A"},{"$error":"#N/A"},null,{"$error":"#N/A"},{"$error":"#N/A"},null,{"$error":"#N/A"},{"$error":"#N/A"}]
[null," ()",null,{"$error":"#N/A"},{"$error":"#N/A"},null,{"$error":"#N/A"},{"$error":"#N/A"},null,{"$error":"#N/A"},{"$error":"#N/A"}]
[null," ()",null,{"$error":"#N/A"},{"$error":"#N/A"},null,{"$error":"#N/A"},{"$error":"#N/A"},null,{"$error":"#N/A"},{"$error":"#N/A"}]
[null," ()",null,{"$error":"#N/A"},{"$error":"#N/A"},null,{"$error":"#N/A"},{"$error":"#N/A"},null,{"$error":"#N/A"},{"$error":"#N/A"}]
[null," ()",null,{"$error":"#N/A"},{"$error":"#N/A"},null,{"$error":"#N/A"},{"$error":"#N/A"},null,{"$error":"#N/A"},{"$error":"#N/A"}]
[null," ()",null,{"$error":"#N/A"},{"$error":"#N/A"},null,{"$error":"#N/A"},{"$error":"#N/A"},null,{"$error":"#N/A"},{"$error":"#N/A"}]
[null," ()",null,{"$error":"#N/A"},{"$error":"#N/A"},null,{"$error":"#N/A"},{"$error":"#N/A"},null,{"$error":"#N/A"},{"$error":"#N/A"}]
[null," ()",null,{"$error":"#N/A"},{"$error":"#N/A"},null,{"$error":"#N/A"},{"$error":"#N/A"},null,{"$error":"#N/A"},{"$error":"#N/A"}]
[null," ()",null,{"$error":"#N/A"},{"$error":"#N/A"},null,{"$error":"#N/A"},{"$error":"#N/A"},null,{"$error":"#N/A"},{"$error":"#N/A"}]
[null," ()",null,{"$error":"#N/A"},{"$error":"#N/A"},null,{"$error":"#N/A"},{"$error":"#N/A"},null,{"$error":"#N/A"},{"$error":"#N/A"}]
[null," ()",null,{"$error":"#N/A"},{"$error":"#N/A"},null,{"$error":"#N/A"},{"$error":"#N/A"},null,{"$error":"#N/A"},{"$error":"#N/A"}]
[null," ()",null,{"$error":"#N/A"},{"$error":"#N/A"},null,{"$error":"#N/A"},{"$error":"#N/A"},null,{"$error":"#N/A"},{"$error":"#N/A"}]
[null," ()",null,{"$error":"#N/A"},{"$error":"#N/A"},null,{"$error":"#N/A"},{"$error":"#N/A"},null,{"$error":"#N/A"},{"$error":"#N/A"}]
[null," ()",null,{"$error":"#N/A"},{"$error":"#N/A"},null,{"$error":"#N/A"},{"$error":"#N/A"},null,{"$error":"#N/A"},{"$error":"#N/A"}]
[null," ()",null,{"$error":"#N/A"},{"$error":"#N/A"},null,{"$error":"#N/A"},{"$error":"#N/A"},null,{"$error":"#N/A"},{"$error":"#N/A"}]
[null," ()",null,{"$error":"#N/A"},{"$error":"#N/A"},null,{"$error":"#N/A"},{"$error":"#N/A"},null,{"$error":"#N/A"},{"$error":"#N/A"}]
[null," ()",null,{"$error":"#N/A"},{"$error":"#N/A"},null,{"$error":"#N/A"},{"$error":"#N/A"},null,{"$error":"#N/A"},{"$error":"#N/A"}]
[null," ()",null,{"$error":"#N/A"},{"$error":"#N/A"},null,{"$error":"#N/A"},{"$error":"#N/A"},null,{"$error":"#N/A"},{"$error":"#N/A"}]
[null," ()",null,{"$error":"#N/A"},{"$error":"#N/A"},null,{"$error":"#N/A"},{"$error":"#N/A"},null,{"$error":"#N/A"},{"$error":"#N/A"}]
[null," ()",null,{"$error":"#N/A"},{"$error":"#N/A"},null,{"$error":"#N/A"},{"$error":"#N/A"},null,{"$error":"#N/A"},{"$error":"#N/A"}]
[null,{"$f":"F105&\" (\"&C105&\")\"","v":" ()"},null,{"$f":"VLOOKUP($C105,MasasPorFormula,2,FALSE)","v":{"$error":"#N/A"}},{"$f":"VLOOKUP($C105,MasasPorFormula,3,FALSE)","v":{"$error":"#N/A"}},null,{"$error":"#N/A"},{"$f":"VLOOKUP($F105,MasasPorFormula,3,FALSE)","v":{"$error":"#N/A"}},null,{"$f":"H105*I105","v":{"$error":"#N/A"}},{"$f":"J105/E105","v":{"$error":"#N/A"}}]
[null," ()",null,{"$error":"#N/A"},{"$error":"#N/A"},null,{"$error":"#N/A"},{"$error":"#N/A"},null,{"$error":"#N/A"},{"$error":"#N/A"}]
[null," ()",null,{"$error":"#N/A"},{"$error":"#N/A"},null,{"$error":"#N/A"},{"$error":"#N/A"},null,{"$error":"#N/A"},{"$error":"#N/A"}]
[null," ()",null,{"$error":"#N/A"},{"$error":"#N/A"},null,{"$error":"#N/A"},{"$error":"#N/A"},null,{"$error":"#N/A"},{"$error":"#N/A"}]
[null," ()",null,{"$error":"#N/A"},{"$error":"#N/A"},null,{"$error":"#N/A"},{"$error":"#N/A"},null,{"$error":"#N/A"},{"$error":"#N/A"}]
[null," ()",null,{"$error":"#N/A"},{"$error":"#N/A"},null,{"$error":"#N/A"},{"$error":"#N/A"},null,{"$error":"#N/A"},{"$error":"#N/A"}]
[null," ()",null,{"$error":"#N/A"},{"$error":"#N/A"},null,{"$error":"#N/A"},{"$error":"#N/A"},null,{"$error":"#N/A"},{"$error":"#N/A"}]
[null," ()",null,{"$error":"#N/A"},{"$error":"#N/A"},null,{"$error":"#N/A"},{"$error":"#N/A"},null,{"$error":"#N/A"},{"$error":"#N/A"}]
[null," ()",null,{"$error":"#N/A"},{"$error":"#N/A"},null,{"$error":"#N/A"},{"$error":"#N/A"},null,{"$error":"#N/A"},{"$error":"#N/A"}]
[null," ()",null,{"$error":"#N/A"},{"$error":"#N/A"},null,{"$error":"#N/A"},{"$error":"#N/A"},null,{"$error":"#N/A"},{"$error":"#N/A"}]
[null," ()",null,{"$error":"#N/A"},{"$error":"#N/A"},null,{"$error":"#N/A"},{"$error":"#N/A"},null,{"$error":"#N/A"},{"$error":"#N/A"}]
[null," ()",null,{"$error":"#N/A"},{"$error":"#N/A"},null,{"$error":"#N/A"},{"$error":"#N/A"},null,{"$error":"#N/A"},{"$error":"#N/A"}]
[null," ()",null,{"$error":"#N/A"},{"$error":"#N/A"},null,{"$error":"#N/A"},{"$error":"#N/A"},null,{"$error":"#N/A"},{"$error":"#N/A"}]
[null," ()",null,{"$error":"#N/A"},{"$error":"#N/A"},null,{"$error":"#N/A"},{"$error":"#N/A"},null,{"$error":"#N/A"},{"$error":"#N/A"}]
[null," ()",null,{"$error":"#N/A"},{"$error":"#N/A"},null,{"$error":"#N/A"},{"$error":"#N/A"},null,{"$error":"#N/A"},{"$error":"#N/A"}]
[null," ()",null,{"$error":"#N/A"},{"$error":"#N/A"},null,{"$error":"#N/A"},{"$error":"#N/A"},null,{"$error":"#N/A"},{"$error":"#N/A"}]
[null," ()",null,{"$error":"#N/A"},{"$error":"#N/A"},null,{"$error":"#N/A"},{"$error":"#N/A"},null,{"$error":"#N/A"},{"$error":"#N/A"}]
[null," ()",null,{"$error":"#N/A"},{"$error":"#N/A"},null,{"$error":"#N/A"},{"$error":"#N/A"},null,{"$error":"#N/A"},{"$error":"#N/A"}]
[null," ()",null,{"$error":"#N/A"},{"$error":"#N/A"},null,{"$error":"#N/A"},{"$error":"#N/A"},null,{"$error":"#N/A"},{"$error":"#N/A"}]
[null," ()",null,{"$error":"#N/A"},{"$error":"#N/A"},null,{"$error":"#N/A"},{"$error":"#N/A"},null,{"$error":"#N/A"},{"$error":"#N/A"}]
[null," ()",null,{"$error":"#N/A"},{"$error":"#N/A"},null,{"$error":"#N/A"},{"$error":"#N/A"},null,{"$error":"#N/A"},{"$error":"#N/A"}]
[null," ()",null,{"$error":"#N/A"},{"$error":"#N/A"},null,{"$error":"#N/A"},{"$error":"#N/A"},null,{"$error":"#N/A"},{"$error":"#N/A"}]
[null," ()",null,{"$error":"#N/A"},{"$error":"#N/A"},null,{"$error":"#N/A"},{"$error":"#N/A"},null,{"$error":"#N/A"},{"$error":"#N/A"}]
[null," ()",null,{"$error":"#N/A"},{"$error":"#N/A"},null,{"$error":"#N/A"},{"$error":"#N/A"},null,{"$error":"#N/A"},{"$error":"#N/A"}]
[null," ()",null,{"$error":"#N/A"},{"$error":"#N/A"},null,{"$error":"#N/A"},{"$error":"#N/A"},null,{"$error":"#N/A"},{"$error":"#N/A"}]
[null," ()",null,{"$error":"#N/A"},{"$error":"#N/A"},null,{"$error":"#N/A"},{"$error":"#N/A"},null,{"$error":"#N/A"},{"$error":"#N/A"}]
[null," ()",null,{"$error":"#N/A"},{"$error":"#N/A"},null,{"$error":"#N/A"},{"$error":"#N/A"},null,{"$error":"#N/A"},{"$error":"#N/A"}]
[null," ()",null,{"$error":"#N/A"},{"$error":"#N/A"},null,{"$error":"#N/A"},{"$error":"#N/A"},null,{"$error":"#N/A"},{"$error":"#N/A"}]
[null," ()",null,{"$error":"#N/A"},{"$error":"#N/A"},null,{"$error":"#N/A"},{"$error":"#N/A"},null,{"$error":"#N/A"},{"$error":"#N/A"}]
[null," ()",null,{"$error":"#N/A"},{"$error":"#N/A"},null,{"$error":"#N/A"},{"$error":"#N/A"},null,{"$error":"#N/A"},{"$error":"#N/A"}]
[null," ()",null,{"$error":"#N/A"},{"$error":"#N/A"},null,{"$error":"#N/A"},{"$error":"#N/A"},null,{"$error":"#N/A"},{"$error":"#N/A"}]
[null," ()",null,{"$error":"#N/A"},{"$error":"#N/A"},null,{"$error":"#N/A"},{"$error":"#N/A"},null,{"$error":"#N/A"},{"$error":"#N/A"}]
[null,{"$f":"F137&\" (\"&C137&\")\"","v":" ()"},null,{"$f":"VLOOKUP($C137,MasasPorFormula,2,FALSE)","v":{"$error":"#N/A"}},{"$f":"VLOOKUP($C137,MasasPorFormula,3,FALSE)","v":{"$error":"#N/A"}},null,{"$f":"VLOOKUP($F137,MasasPorFormula,2,FALSE)","v":{"$error":"#N/A"}},{"$f":"VLOOKUP($F137,MasasPorFormula,3,FALSE)","v":{"$error":"#N/A"}},null,{"$f":"H137*I137","v":{"$error":"#N/A"}},{"$f":"J137/E137","v":{"$error":"#N/A"}}]
[null," ()",null,{"$error":"#N/A"},{"$error":"#N/A"},null,{"$error":"#N/A"},{"$error":"#N/A"},null,{"$error":"#N/A"},{"$error":"#N/A"}]
[null," ()",null,{"$error":"#N/A"},{"$error":"#N/A"},null,{"$error":"#N/A"},{"$error":"#N/A"},null,{"$error":"#N/A"},{"$error":"#N/A"}]
[null," ()",null,{"$error":"#N/A"},{"$error":"#N/A"},null,{"$error":"#N/A"},{"$error":"#N/A"},null,{"$error":"#N/A"},{"$error":"#N/A"}]
[null," ()",null,{"$error":"#N/A"},{"$error":"#N/A"},null,{"$error":"#N/A"},{"$error":"#N/A"},null,{"$error":"#N/A"},{"$error":"#N/A"}]
[null," ()",null,{"$error":"#N/A"},{"$error":"#N/A"},null,{"$error":"#N/A"},{"$error":"#N/A"},null,{"$error":"#N/A"},{"$error":"#N/A"}]
[null," ()",null,{"$error":"#N/A"},{"$error":"#N/A"},null,{"$error":"#N/A"},{"$error":"#N/A"},null,{"$error":"#N/A"},{"$error":"#N/A"}]
[null," ()",null,{"$error":"#N/A"},{"$error":"#N/A"},null,{"$error":"#N/A"},{"$error":"#N/A"},null,{"$error":"#N/A"},{"$error":"#N/A"}]
[null,"<eot>",null,null,null,null,null,null,null,null,null,null,"<eot>"]

{"sheet":"Control de Consumos Netos","index":8,"n_rows":60,"n_cols":16,"rows_kept":60,"cut":false,"hidden":true,"merged":[]}
[null,null,null,"CALCULADORAS DE ABONADO"]
[null,null,null,"www.acuariofiliamadrid.org",null,null,null,null,null,null,"(c) carlosterre, 2014"]
[]
["Control de Abonado"]
[]
[null,"Nombre del acuario","Comunitario 260L"]
[null,"Columna agua",220,"L"]
[]
[null,"Ultima analítica"]
[null,"Fecha","2014-04-26","Umbral Min","Umbral Max"]
[null,"Temperatura (ºC)","nd",24,26]
[null,"pH (·)","nd",6,7]
[null,"gH (dureza total) (ºdH)","nd",5,15]
[null,"kH (dureza carbonatos) (ºdH)","nd",5,10]
[null,"NO2 (nitritos) (mg/L)","nd",0,0.5]
[null,"NO3 (nitratos) (mg/L)",8,10,50]
[null,"PO4 (mg/L)",1,0,1]
[null,"Fe (mg/L)","nd",0.1,0.25]
[null,"Tipo test","Gotas Sera"]
[]
[null,"Analíticas"]
[null,"Fecha","2014-03-24","2014-04-01","2014-04-06","2014-04-12","2014-04-18","2014-04-26","2014-05-02"]
[null,"Días desde última analítica",null,{"$f":"IF(D22=\"\",\"\",D22-C22)","v":8},5,6,6,8,6,"","","","","","",""]
[null,"Temperatura (ºC)",26,26,25.7,25.6]
[null,"pH (·)",6,7,6.5,null,7]
[null,"gH (dureza total) (ºdH)",7.5,">6",null,null,">6"]
[null,"kH (dureza carbonatos) (ºdH)",5,6,null,null,6]
[null,"NO2 (nitritos) (mg/L)",0,0,0,null,0]
[1,"NO3 (nitratos) (mg/L)",0,10,10,0,0,8]
[2,"PO4 (mg/L)",0.3,null,1,1,1,1]
[3,"Fe (mg/L)",0.05,null,0,0.18,0]
[null,"Tipo test","Gotas Sera","Tiras Sera","Gotas Sera","Gotas Sera","Gotas Sera","Gotas Sera"]
[]
[null,"Consumos netos",{"$f":"IF(C$22=\"\",\"\",C$22)","v":"2014-03-24"},{"$f":"IF(D$22=\"\",\"\",D$22)","v":"2014-04-01"},"2014-04-06","2014-04-12","2014-04-18","2014-04-26","2014-05-02","","","","","","",""]
[1,{"$f":"OFFSET(B$28,$A35,0)","v":"NO3 (nitratos) (mg/L)"}]
[null,"Analítica disponible",{"$f":"IF(NOT(C$22=\"\"),IF(OFFSET(C$28,$A35,0)=\"\",FALSE,TRUE),\"\")","v":true},true,true,true,true,true,false,"","","","","","",""]
[null,"Días desde última analítica",null,{"$f":"IF(D$22=\"\",\"\", IF(C36,D$23,C37+D$23))","v":8},5,6,6,8,6,"","","","","","",""]
[null,"Valor actual",null,{"$f":"IF(D$22=\"\",\"\", IF(D36,OFFSET(D$28,$A35,0),\"\"))","v":10},{"$f":"IF(E$22=\"\",\"\", IF(E36,OFFSET(E$28,$A35,0),\"\"))","v":10},0,0,8,"","","","","","","",""]
[null,"Valor anterior",null,{"$f":"IF(D$22=\"\",\"\", OFFSET($B$28,$A35, MATCH(D$22-D37,$C$22:D$22,0)))","v":0},{"$f":"IF(E$22=\"\",\"\", OFFSET($B$28,$A35, MATCH(E$22-E37,$C$22:E$22,0)))","v":10},{"$f":"IF(F$22=\"\",\"\", OFFSET($B$28,$A35, MATCH(F$22-F37,$C$22:F$22,0)))","v":10},{"$f":"IF(G$22=\"\",\"\", OFFSET($B$28,$A35, MATCH(G$22-G37,$C$22:G$22,0)))","v":0},{"$f":"IF(H$22=\"\",\"\", OFFSET($B$28,$A35, MATCH(H$22-H37,$C$22:H$22,0)))","v":0},{"$f":"IF(I$22=\"\",\"\", OFFSET($B$28,$A35, MATCH(I$22-I37,$C$22:I$22,0)))","v":8},{"$f":"IF(J$22=\"\",\"\", OFFSET($B$28,$A35, MATCH(J$22-J37,$C$22:J$22,0)))","v":""},{"$f":"IF(K$22=\"\",\"\", OFFSET($B$28,$A35, MATCH(K$22-K37,$C$22:K$22,0)))","v":""},{"$f":"IF(L$22=\"\",\"\", OFFSET($B$28,$A35, MATCH(L$22-L37,$C$22:L$22,0)))","v":""},{"$f":"IF(M$22=\"\",\"\", OFFSET($B$28,$A35, MATCH(M$22-M37,$C$22:M$22,0)))","v":""},{"$f":"IF(N$22=\"\",\"\", OFFSET($B$28,$A35, MATCH(N$22-N37,$C$22:N$22,0)))","v":""},{"$f":"IF(O$22=\"\",\"\", OFFSET($B$28,$A35, MATCH(O$22-O37,$C$22:O$22,0)))","v":""},{"$f":"IF(P$22=\"\",\"\", OFFSET($B$28,$A35, MATCH(P$22-P37,$C$22:P$22,0)))","v":""}]
[null,"Abonado desde última analítica (mg/L)",null,null,null,null,10,2]
[null,{"$f":"\"Consumo neto \"&OFFSET($B$28,A35,0)","v":"Consumo neto NO3 (nitratos) (mg/L)"},null,{"$f":"IF(D$22=\"\",\"\",IF(D36,D39+C40-D38,\"\"))","v":-10},{"$f":"IF(E$22=\"\",\"\",IF(E36,E39+D40-E38,\"\"))","v":0},10,0,2,"","","","","","","",""]
[null,"Consumo neto diario (mg/(L·día))",null,{"$f":"IF(D$22=\"\",\"\",IF(D36,D41/D37,\"\"))","v":-1.25},{"$f":"IF(E$22=\"\",\"\",IF(E36,E41/E37,\"\"))","v":0},1.6666666666666667,0,0.25,"","","","","","","",""]
[2,{"$f":"OFFSET(B$28,$A43,0)","v":"PO4 (mg/L)"}]
[null,"Analítica disponible",{"$f":"IF(NOT(C$22=\"\"),IF(OFFSET(C$28,$A43,0)=\"\",FALSE,TRUE),\"\")","v":true},false,true,true,true,true,false,"","","","","","",""]
[null,"Días desde última analítica",null,{"$f":"IF(D$22=\"\",\"\", IF(C44,D$23,C45+D$23))","v":8},13,6,6,8,6,"","","","","","",""]
[null,"Valor actual",null,{"$f":"IF(D$22=\"\",\"\",IF(D44,OFFSET(D$28,$A43,0),\"\"))","v":""},{"$f":"IF(E$22=\"\",\"\",IF(E44,OFFSET(E$28,$A43,0),\"\"))","v":1},1,1,1,"","","","","","","",""]
[null,"Valor anterior",null,{"$f":"IF(D$22=\"\",\"\", OFFSET($B$28,$A43, MATCH(D$22-D45,$C$22:D$22,0)))","v":0.3},{"$f":"IF(E$22=\"\",\"\", OFFSET($B$28,$A43, MATCH(E$22-E45,$C$22:E$22,0)))","v":0.3},{"$f":"IF(F$22=\"\",\"\", OFFSET($B$28,$A43, MATCH(F$22-F45,$C$22:F$22,0)))","v":1},{"$f":"IF(G$22=\"\",\"\", OFFSET($B$28,$A43, MATCH(G$22-G45,$C$22:G$22,0)))","v":1},{"$f":"IF(H$22=\"\",\"\", OFFSET($B$28,$A43, MATCH(H$22-H45,$C$22:H$22,0)))","v":1},{"$f":"IF(I$22=\"\",\"\", OFFSET($B$28,$A43, MATCH(I$22-I45,$C$22:I$22,0)))","v":1},{"$f":"IF(J$22=\"\",\"\", OFFSET($B$28,$A43, MATCH(J$22-J45,$C$22:J$22,0)))","v":""},{"$f":"IF(K$22=\"\",\"\", OFFSET($B$28,$A43, MATCH(K$22-K45,$C$22:K$22,0)))","v":""},{"$f":"IF(L$22=\"\",\"\", OFFSET($B$28,$A43, MATCH(L$22-L45,$C$22:L$22,0)))","v":""},{"$f":"IF(M$22=\"\",\"\", OFFSET($B$28,$A43, MATCH(M$22-M45,$C$22:M$22,0)))","v":""},{"$f":"IF(N$22=\"\",\"\", OFFSET($B$28,$A43, MATCH(N$22-N45,$C$22:N$22,0)))","v":""},{"$f":"IF(O$22=\"\",\"\", OFFSET($B$28,$A43, MATCH(O$22-O45,$C$22:O$22,0)))","v":""},{"$f":"IF(P$22=\"\",\"\", OFFSET($B$28,$A43, MATCH(P$22-P45,$C$22:P$22,0)))","v":""}]
[null,"Abonado desde última analítica (mg/L)"]
[null,{"$f":"\"Consumo neto \"&OFFSET($B$28,A43,0)","v":"Consumo neto PO4 (mg/L)"},null,{"$f":"IF(D$22=\"\",\"\",IF(D44,D47+C48-D46,\"\"))","v":""},{"$f":"IF(E$22=\"\",\"\",IF(E44,E47+D48-E46,\"\"))","v":-0.7},0,0,0,"","","","","","","",""]
[null,"Consumo neto diario (mg/(L·día))",null,{"$f":"IF(D$22=\"\",\"\",IF(D44,D49/D45,\"\"))","v":""},{"$f":"IF(E$22=\"\",\"\",IF(E44,E49/E45,\"\"))","v":-5.3846153846153842E-2},0,0,0,"","","","","","","",""]
[3,{"$f":"OFFSET(B$28,$A51,0)","v":"Fe (mg/L)"}]
[null,"Analítica disponible",{"$f":"IF(NOT(C$22=\"\"),IF(OFFSET(C$28,$A51,0)=\"\",FALSE,TRUE),\"\")","v":true},false,true,true,true,false,false,"","","","","","",""]
[null,"Días desde última analítica",null,{"$f":"IF(D$22=\"\",\"\", IF(C52,D$23,C53+D$23))","v":8},13,6,6,8,14,"","","","","","",""]
[null,"Valor actual",null,{"$f":"IF(D$22=\"\",\"\",IF(D52,OFFSET(D$28,$A51,0),\"\"))","v":""},{"$f":"IF(E$22=\"\",\"\",IF(E52,OFFSET(E$28,$A51,0),\"\"))","v":0},0.18,0,"","","","","","","","",""]
[null,"Valor anterior",null,{"$f":"IF(D$22=\"\",\"\", OFFSET($B$28,$A51, MATCH(D$22-D53,$C$22:D$22,0)))","v":0.05},{"$f":"IF(E$22=\"\",\"\", OFFSET($B$28,$A51, MATCH(E$22-E53,$C$22:E$22,0)))","v":0.05},{"$f":"IF(F$22=\"\",\"\", OFFSET($B$28,$A51, MATCH(F$22-F53,$C$22:F$22,0)))","v":0},{"$f":"IF(G$22=\"\",\"\", OFFSET($B$28,$A51, MATCH(G$22-G53,$C$22:G$22,0)))","v":0.18},{"$f":"IF(H$22=\"\",\"\", OFFSET($B$28,$A51, MATCH(H$22-H53,$C$22:H$22,0)))","v":0},{"$f":"IF(I$22=\"\",\"\", OFFSET($B$28,$A51, MATCH(I$22-I53,$C$22:I$22,0)))","v":0},{"$f":"IF(J$22=\"\",\"\", OFFSET($B$28,$A51, MATCH(J$22-J53,$C$22:J$22,0)))","v":""},{"$f":"IF(K$22=\"\",\"\", OFFSET($B$28,$A51, MATCH(K$22-K53,$C$22:K$22,0)))","v":""},{"$f":"IF(L$22=\"\",\"\", OFFSET($B$28,$A51, MATCH(L$22-L53,$C$22:L$22,0)))","v":""},{"$f":"IF(M$22=\"\",\"\", OFFSET($B$28,$A51, MATCH(M$22-M53,$C$22:M$22,0)))","v":""},{"$f":"IF(N$22=\"\",\"\", OFFSET($B$28,$A51, MATCH(N$22-N53,$C$22:N$22,0)))","v":""},{"$f":"IF(O$22=\"\",\"\", OFFSET($B$28,$A51, MATCH(O$22-O53,$C$22:O$22,0)))","v":""},{"$f":"IF(P$22=\"\",\"\", OFFSET($B$28,$A51, MATCH(P$22-P53,$C$22:P$22,0)))","v":""}]
[null,"Abonado desde última analítica (mg/L)"]
[null,{"$f":"\"Consumo neto \"&OFFSET($B$28,A51,0)","v":"Consumo neto Fe (mg/L)"},null,{"$f":"IF(D$22=\"\",\"\",IF(D52,D55+C56-D54,\"\"))","v":""},{"$f":"IF(E$22=\"\",\"\",IF(E52,E55+D56-E54,\"\"))","v":0.05},-0.18,0.18,"","","","","","","","",""]
[null,"Consumo neto diario (mg/(L·día))",null,{"$f":"IF(D$22=\"\",\"\",IF(D52,D57/D53,\"\"))","v":""},3.8461538461538464E-3,-0.03,0.03,"","","","","","","","",""]
[]
[null,null,null,null,null,null,null,"2/0/13","5/0/13"]